Cogmind - Beta 9.6 @@@ ROGUE MODE // 2020.08.28 @ 05:01:19 Player: WheelRifIntoCaves Result: Escaped singularity! Performance ------------- Evolutions (9) 4500 Regions Visited (38) 7600 Robots Destroyed (342) 1710 Value Destroyed (20835) 20835 Prototype IDs (92) 1840 Alien Tech Used (10) 2000 Bonus (50928) 50928 TOTAL SCORE: 89413 Bonus ------- High Alert Combat Kills 3748 Follower Combat Kills 1513 Entered Garrisons 200 Used RIF Installer 500 Network Hubs Disabled 200 Met Data Miner 300 Met Zhirov 300 Found Hidden Lab 3000 Used Core Reset Matrix 3000 Destroyed MAIN.C Guards 500 Met MAIN.C 5000 Destroyed MAIN.C Shell 5000 Destroyed MAIN.C 10000 Met Architect 300 Destroyed A8 300 Destroyed A6 400 Destroyed A5 500 Destroyed Architect 15000 Win 3000 Friendly Fire -1833 Cogmind --------- Core Integrity 487/1600 Matter 274/425 Energy 1613/1630 System Corruption 2% Temperature Cool (10) Movement Treading (163) Location Near Former Tau Ceti IV Parts ------- > --- POWER (2) -------- Zero-point Reactor Zero-point Reactor > --- PROPULSION (5) --- Armored Medium Treads High-density Centrium Heavy Treads High-density Centrium Heavy Treads > --- UTILITY (16) ----- Experimental Coolant Injector Experimental Coolant Injector High-capacity Storage Unit High-capacity Storage Unit High-capacity Storage Unit Experimental Energy Well Experimental Targeting Computer Experimental Targeting Computer Advanced Armor Integrity Analyzer Quantum Capacitor Experimental Powered Armor SHELL Armor > --- WEAPON (3) ------- Sigix Quantum Sheargun Potential Cannon > --- INVENTORY (28) --- Quantum Reactor Zero-point Reactor Experimental Biometal Heavy Treads Experimental Energy Well (1000) Experimental Energy Well (1000) Advanced Weapon Cycler Improved Weapon Shielding Improved Energy Mantle AEGIS Remote Shield Matter Drive Sigix Quantum Sheargun Cooled Proton Cannon Enhanced Nova Cannon Enhanced Nova Cannon Enhanced Nova Cannon Enhanced Nova Cannon Enhanced Nova Cannon Potential Cannon Graviton Cannon Nanosword Peak State ------------ > --- POWER ------------ Improved Quantum Reactor Zero-point Reactor > --- PROPULSION ------- Armored Medium Treads Centrium Heavy Treads Experimental Biometal Heavy Treads > --- UTILITY ---------- High-capacity Storage Unit High-capacity Storage Unit High-capacity Storage Unit High-capacity Storage Unit High-capacity Storage Unit Experimental Targeting Computer Experimental Core Analyzer Advanced Armor Integrity Analyzer Advanced Weapon Cycler Experimental Powered Armor SHELL Armor AEGIS Remote Shield Deep Network Scanner Deep Network Scanner > --- WEAPON ----------- HERF Cannon Enhanced Nova Cannon Enhanced Nova Cannon > --- INVENTORY -------- Quantum Reactor Quantum Reactor Centrium Wheel Centrium Wheel Experimental Coolant Injector Experimental Coolant Injector High-capacity Storage Unit Experimental Energy Well Experimental Energy Well Experimental Energy Well Experimental Matter Compressor Experimental Targeting Computer Advanced Weapon Cycler Experimental Hardlight Generator Improved Energy Mantle Improved System Restoration Module Heart of Steel Dimensional Node Initializer Transdimensional Reconstructor Transdimensional Reconstructor Transdimensional Reconstructor Integrity Redistributor Integrity Redistributor Terrabomb Matter Drive Gamma Rifle Tachyon Dispersion Ray Sigix Quantum Sheargun Sigix Quantum Sheargun Cooled Proton Cannon Matter Neutralizer Potential Cannon Potential Cannon Helical Railgun Heavy Flak Cannon Advanced Micro-nuke Launcher Advanced Remote Datajack Nanosword [Rating: 237] Favorites ----------- Power Antimatter Reactor Engine Cooled Ion Engine Power Core Light Nuclear Core Reactor Antimatter Reactor Propulsion Centrium Wheel Treads Centrium Heavy Treads Leg Aluminum Leg Wheel Centrium Wheel Utility High-capacity Storage Unit Device System Backup Module Storage High-capacity Storage Unit Processor Experimental Targeting Computer Hackware Deep Network Scanner Protection Damper Plating Weapon Flak Gun Energy Gun Advanced Variable Charge Gun Energy Cannon Proton Burst Cannon Ballistic Gun Flak Gun Ballistic Cannon Light Cannon Launcher Precision Grenade Launcher Special Weapon Remote Datajack Impact Weapon Heavy Hammer Slashing Weapon Nanosword Build | -11 -10 -9 -9 -8 -8 -7 -7 -7 -7 -7 -7 -6 -6 -6 -6 -6 -5 -5 -5 -5 -5 -5 -5 -5 -4 -4 -4 -4 -3 -3 -3 -3 -2 -2 -2 -1 -1 -1 ------- Run | Scr Mat Mat Min Mat Gar Fac Was Fac Low Low Dat Pro Fac Low Low Zio Pro Fac Was Fac Ext Cet Arc Hub Fac Upp Upp Zhi Pro Res Arm Lab Res Tes Sec Acc Com Ac0 Slots Evolved 18 | . . 2 . 2 . 2 . . . . . . 2 . . . . 2 . . . . . . 2 . . . . 2 . . 2 . . 2 . . Power 1 | . . . . . . . . . . . . . . . . . . . . . . . . . . . . . . . . . . . . 1 . . Propulsion 3 | . . . . . . . . . . . . . . . . . . . . . . . . . . . . . . 2 . . . . . 1 . . Utility 13 | . . 1 . 2 . 2 . . . . . . 2 . . . . 2 . . . . . . 2 . . . . . . . 2 . . . . . Weapon 1 | . . 1 . . . . . . . . . . . . . . . . . . . . . . . . . . . . . . . . . . . . Parts Attached 576 | 7 37 9 1 2 15 27 11 9 7 7 19 5 23 18 10 3 8 7 11 . 23 9 6 8 29 2 4 6 27 9 2 5 14 39 24 16 86 31 Power 32 | 1 1 2 . . . 3 2 . . . . . . . . . 1 . 1 . 1 1 . . . . . 2 1 1 . . 1 2 1 1 9 1 Engine 7 | 1 . 1 . . . 3 1 . . . . . . . . . 1 . . . . . . . . . . . . . . . . . . . . . Core 2 | . 1 1 . . . . . . . . . . . . . . . . . . . . . . . . . . . . . . . . . . . . Reactor 23 | . . . . . . . 1 . . . . . . . . . . . 1 . 1 1 . . . . . 2 1 1 . . 1 2 1 1 9 1 Propulsion 69 | 2 7 . . . 6 1 1 . 3 . 2 . . 2 . 1 5 1 . . 2 1 . . 3 . . . 3 1 . . 1 6 1 1 10 9 Treads 36 | 2 4 . . . 2 . . . . . 1 . . . . 1 1 . . . 1 1 . . 1 . . . 1 1 . . 1 3 . . 8 8 Leg 3 | . . . . . 2 . . . . . . . . . . . . . . . . . . . . . . . . . . . . . . . . 1 Wheel 30 | . 3 . . . 2 1 1 . 3 . 1 . . 2 . . 4 1 . . 1 . . . 2 . . . 2 . . . . 3 1 1 2 . Hover . | . . . . . . . . . . . . . . . . . . . . . . . . . . . . . . . . . . . . . . . Flight . | . . . . . . . . . . . . . . . . . . . . . . . . . . . . . . . . . . . . . . . Utility 247 | 2 6 2 1 2 1 11 5 7 3 3 9 1 9 8 3 2 2 3 8 . 5 4 4 3 5 1 4 4 13 1 2 3 6 22 17 12 42 11 Device 124 | 1 . 1 . 1 1 3 1 4 3 1 2 1 4 3 1 . 1 1 4 . 4 1 1 2 4 . . 2 9 . 2 . 3 13 14 7 25 4 Storage 42 | . 4 1 1 . . 4 2 . . 2 2 . . 1 . . . . 1 . . 2 1 . 1 1 1 . 1 . . 2 . 2 2 . 7 4 Processor 13 | 1 . . . . . 3 . . . . 1 . . . . . . . . . . . . . . . 1 . . . . . . 1 . 3 2 1 Hackware 16 | . . . . . . . 1 2 . . . . 2 . . . . 1 . . . . 1 1 . . . . . . . . 3 2 1 2 . . Protection 52 | . 2 . . 1 . 1 1 1 . . 4 . 3 4 2 2 1 1 3 . 1 1 1 . . . 2 2 3 1 . 1 . 4 . . 8 2 Artifact . | . . . . . . . . . . . . . . . . . . . . . . . . . . . . . . . . . . . . . . . Weapon 228 | 2 23 5 . . 8 12 3 2 1 4 8 4 14 8 7 . . 3 2 . 15 3 2 5 21 1 . . 10 6 . 2 6 9 5 2 25 10 Energy Gun 34 | . 10 . . . . 5 . . . . . 1 . . . . . . . . 1 1 . . 1 . . . 2 2 . 1 2 3 1 . 2 2 Energy Cannon 43 | . . . . . . . 1 . . 1 1 . 1 . . . . 1 1 . . . . 1 6 . . . 5 1 . 1 . . . 1 15 7 Ballistic Gun 60 | 2 7 . . . 4 1 . 1 . . . 2 7 3 2 . . 1 1 . 8 1 2 2 9 1 . . 2 . . . . . 2 . 2 . Ballistic Cannon 13 | . 2 3 . . 3 . . . . 1 . . . . . . . . . . . . . . . . . . . . . . . 1 . . 2 1 Launcher 31 | . . . . . . 3 . 1 . 1 5 1 4 4 3 . . . . . 3 1 . 1 3 . . . . . . . . . . . 1 . Special Weapon 16 | . 4 . . . 1 1 1 . . . . . . . . . . 1 . . 1 . . . 1 . . . . . . . 1 1 2 1 1 . Impact Weapon 24 | . . 2 . . . 2 1 . . 1 1 . 2 1 2 . . . . . 2 . . 1 1 . . . 1 3 . . 3 1 . . . . Slashing Weapon 7 | . . . . . . . . . 1 . 1 . . . . . . . . . . . . . . . . . . . . . . 3 . . 2 . Piercing Weapon . | . . . . . . . . . . . . . . . . . . . . . . . . . . . . . . . . . . . . . . . Special Melee Weapon . | . . . . . . . . . . . . . . . . . . . . . . . . . . . . . . . . . . . . . . . Unidentified Prototypes 37 | . . . . . . 1 1 . . . 1 . 1 . . . 1 1 . . 2 2 . . . . . 4 2 . . 4 1 2 1 . 9 4 Parts Lost 46 | . 1 . . . 3 . . . . . . 2 . 5 2 . 1 . . . 3 1 . . . . . . 12 1 . . . 6 2 . 5 2 Power 5 | . 1 . . . . . . . . . . . . . . . 1 . . . . . . . . . . . 1 1 . . . 1 . . . . Propulsion 8 | . . . . . 2 . . . . . . . . 1 . . . . . . . . . . . . . . 1 . . . . . . . 2 2 Utility 20 | . . . . . 1 . . . . . . 1 . 2 2 . . . . . 1 1 . . . . . . 4 . . . . 4 2 . 2 . Weapon 13 | . . . . . . . . . . . . 1 . 2 . . . . . . 2 . . . . . . . 6 . . . . 1 . . 1 . Highest Loss Streak 5 | . 1 . . . 2 . . . . . . 1 . 5 1 . 1 . . . 1 1 . . . . . . 4 1 . . . 4 1 . 4 2 Average Slot Usage (%) 83 | . 99 99 100 91 98 98 77 84 84 83 76 84 91 94 93 93 80 80 81 82 81 81 82 81 83 84 86 88 86 84 80 75 83 82 82 87 81 74 Engine 1 | . 8 3 11 9 9 7 . . . . . . . . . . 5 5 . . . . . . . . . . . . . . . . . . . . Reactor 4 | . . . . . . . 6 7 7 7 7 7 6 6 6 6 . . 4 5 5 5 5 5 5 5 5 5 4 3 4 4 3 4 4 6 6 6 Treads 3 | . 24 22 22 18 6 . . . . . 2 . . . . 2 5 . . . . 5 5 5 . . . . 2 4 4 4 4 4 4 3 7 10 Wheel 8 | . 3 . . . 2 15 15 15 15 15 8 7 6 11 13 8 . 6 5 5 4 . . . 4 5 5 5 2 9 9 9 8 7 8 11 3 . Device 9 | . 5 10 11 10 17 17 7 7 7 6 4 14 15 12 8 10 6 5 7 5 7 5 4 9 20 15 15 14 17 18 14 2 8 8 9 11 11 11 Storage 21 | . 8 12 22 18 18 16 23 23 23 23 23 23 20 20 20 20 20 17 21 23 23 26 29 24 21 26 23 21 24 18 14 21 21 21 22 19 24 20 Processor 1 | . 5 . . . . 10 . . . . . . . . . . . . . . . . . . . . 2 5 2 . . . . 2 3 8 7 11 Hackware 5 | . . . . . . . . . . . . . 5 6 6 6 6 10 11 11 11 11 11 11 10 10 10 10 10 9 9 9 19 16 12 9 1 . Protection 7 | . 7 9 . 9 9 6 6 7 7 7 11 9 16 17 18 17 12 13 9 11 8 5 5 5 5 5 7 10 5 4 9 11 5 5 8 3 3 3 Energy Cannon 1 | . . . . . . . . . . . . . . . . . . . . . . . . . 3 . . . 3 3 4 4 4 1 . 2 5 3 Ballistic Gun 5 | . 15 . . . 2 13 . 7 7 7 2 3 11 13 16 20 20 16 17 17 12 16 17 15 5 5 5 5 3 4 4 2 . . 1 . . 2 Ballistic Cannon 2 | . 5 32 33 27 23 . . . . . . . . . . . . . . . . . . . . . . . . . . . . . . . 1 . Launcher 1 | . . . . . . . . 7 7 6 10 15 7 4 . . . . . . 1 . . . 3 10 10 10 1 . . . . . . . . . Special Weapon 2 | . . . . . 1 . 6 . . . . . . . . . . . . . . . . . . . . . . . . . 2 3 3 3 . . Impact Weapon 2 | . . . . . . . 6 7 1 3 3 . . . 1 . . . . . 1 . . 1 2 . . . . 1 4 2 3 . . . . . Naked Turns . | . . . . . . . . . . . . . . . . . . . . . . . . . . . . . . . . . . . . . . . Heaviest Build 298 | 10 73 86 86 90 90 127 170 182 174 196 174 150 157 154 157 178 178 178 210 210 212 222 220 220 223 221 221 199 209 207 207 291 272 259 251 266 298 243 Greatest Support 217 | 40 40 40 40 40 40 28 28 26 26 26 70 28 28 28 28 70 70 28 28 28 70 80 80 80 44 44 44 44 80 80 32 32 75 155 42 58 202 217 Greatest Overweight (x) 54 | 1 1 2 2 2 4 4 54 6 6 7 6 5 5 5 5 5 6 6 7 7 7 3 2 2 5 5 5 4 6 6 6 9 8 8 7 4 6 1 Average Overweight (x) 5 | . . 1 2 2 3 3 20 6 6 6 4 4 5 5 5 4 2 5 6 7 6 2 2 2 4 5 4 4 3 5 6 7 7 6 6 4 1 . Largest Inventory Capacity 44 | 4 20 20 20 20 20 28 36 28 28 36 28 28 28 28 28 28 28 28 36 36 36 36 36 36 36 36 36 36 36 28 28 44 44 44 44 44 44 44 Average Capacity 31 | 4 7 13 20 20 20 20 28 28 28 28 28 28 28 28 28 28 28 28 34 36 36 36 36 36 36 36 36 36 34 28 28 42 44 44 44 44 43 32 Most Carried 44 | 4 15 18 18 18 20 27 29 27 28 36 28 28 28 27 26 27 26 26 36 36 36 36 36 36 36 36 36 36 36 28 28 37 41 44 44 42 44 36 Average Carried 29 | 1 7 12 16 16 19 19 27 24 26 27 26 26 27 23 25 23 23 23 32 35 34 35 35 35 34 36 35 35 29 25 27 31 39 42 42 40 39 30 Final Capacity 44 | 4 12 20 20 20 20 28 28 28 28 28 28 28 28 28 28 28 28 28 36 36 36 36 36 36 36 36 36 36 28 28 28 44 44 44 44 44 44 28 Final Carried 43 | 4 12 18 16 18 19 27 28 26 27 27 28 27 27 26 24 24 23 25 36 34 36 36 34 35 36 36 36 36 27 28 27 37 41 41 43 41 36 23 Class Distribution -------------------- 35% | Hauler-Mutant 18% | Hacker-Mutant 11% | Hauler-Tank 9% | Hacker-Tank 6% | Wizard-Mutant 4% | Alien-Mutant 4% | Mutant Dominant Class ---------------- Mutant | -10/Materials Tank | -9/Materials Hauler-Tank | -9/Mines Hauler-Tank | -8/Materials Hauler-Tank | -8/Garrison Hauler-Tank | -7/Factory Hauler-Mutant | -7/Waste Hauler-Mutant | -7/Factory Hauler-Mutant | -7/Lower Caves Hauler-Mutant | -7/Lower Caves Hauler-Mutant | -7/Data Miner Hauler-Tank | -6/Proximity Caves Hauler-Tank | -6/Factory Hauler-Tank | -6/Lower Caves Hauler-Tank | -6/Lower Caves Hauler-Tank | -6/Zion Scavenger-Tank | -5/Proximity Caves Hacker-Tank | -5/Factory Hacker-Tank | -5/Waste Hacker-Tank | -5/Factory Hacker-Tank | -5/Extension Hacker-Tank | -5/Cetus Hacker-Tank | -5/Archives Hacker-Tank | -5/Hub_04(d) Hacker-Mutant | -4/Factory Hacker-Mutant | -4/Upper Caves Hacker-Mutant | -4/Upper Caves Hacker-Mutant | -4/Zhirov Hacker-Mutant | -3/Proximity Caves Hacker-Mutant | -3/Research Hacker-Mutant | -3/Armory Hacker-Mutant | -3/Lab Wizard-Mutant | -2/Research Wizard-Mutant | -2/Testing Hacker-Mutant | -2/Section 7 Hacker-Mutant | -1/Access Alien-Gunner | -1/Command Alien-Mutant | -1/Access_0 Resources | -11 -10 -9 -9 -8 -8 -7 -7 -7 -7 -7 -7 -6 -6 -6 -6 -6 -5 -5 -5 -5 -5 -5 -5 -5 -4 -4 -4 -4 -3 -3 -3 -3 -2 -2 -2 -1 -1 -1 ----------- Run | Scr Mat Mat Min Mat Gar Fac Was Fac Low Low Dat Pro Fac Low Low Zio Pro Fac Was Fac Ext Cet Arc Hub Fac Upp Upp Zhi Pro Res Arm Lab Res Tes Sec Acc Com Ac0 Matter Collected 14908 | 312 522 77 184 . 503 574 621 191 126 142 270 189 661 357 452 13 427 412 1886 94 758 205 494 184 587 . 349 . 544 121 . . 276 683 664 238 1593 199 Remotely 116 | . . . . . . 116 . . . . . . . . . . . . . . . . . . . . . . . . . . . . . . . . Salvage Created 19590 | 160 618 77 174 . 497 567 1127 186 133 159 421 281 1347 493 516 13 343 668 114 52 517 571 511 419 970 . 612 . 1484 621 . . 578 1361 415 525 1866 1194 Parts 824 | 13 40 9 10 . 25 27 11 6 3 10 25 5 56 18 17 2 21 32 2 3 34 26 28 20 32 . 20 . 38 42 . . 26 68 23 24 82 26 Haulers Intercepted 5 | . 1 1 . . . 2 . 1 . . . . . . . . . . . . . . . . . . . . . . . . . . . . . . Recyclers Shooed 11 | . 1 . . . . 1 . . . . . . 2 . . . . 2 . . 1 . . . 3 . . . . . . . . . . 1 . . Parts Field Recycled 1 | . . . . . . . . 1 . . . . . . . . . . . . . . . . . . . . . . . . . . . . . . Retrieved Matter 28 | . . . . . . . . 28 . . . . . . . . . . . . . . . . . . . . . . . . . . . . . . Parts Self-Destructed 91 | . . . . . . . . . 3 9 . 3 . . 19 . 21 . . . . . . . . . 8 . 28 . . . . . . . . . Prevented 44 | . . . . . . . . . . . . . . 10 . . . . . . . . . . . . 15 . 19 . . . . . . . . . Kills | -11 -10 -9 -9 -8 -8 -7 -7 -7 -7 -7 -7 -6 -6 -6 -6 -6 -5 -5 -5 -5 -5 -5 -5 -5 -4 -4 -4 -4 -3 -3 -3 -3 -2 -2 -2 -1 -1 -1 ------- Run | Scr Mat Mat Min Mat Gar Fac Was Fac Low Low Dat Pro Fac Low Low Zio Pro Fac Was Fac Ext Cet Arc Hub Fac Upp Upp Zhi Pro Res Arm Lab Res Tes Sec Acc Com Ac0 Combat Hostiles Destroyed 281 | . 15 1 3 . 16 4 5 2 2 3 4 11 12 7 12 . 6 10 . 1 12 6 4 6 11 . 9 . 21 9 . . 6 18 5 6 24 30 Melee 19 | . . . . . . . 2 . . . . . . . . . . . . . . . . . 1 . . . . . . . . 7 5 2 2 . Guns 92 | . 13 . . . . 4 . 2 . 1 . 2 7 . 8 . 6 7 . 1 8 2 4 6 5 . . . 4 4 . . 2 5 . . 1 . Cannons 69 | . 2 1 3 . 16 . 2 . . . . . . . . . . 3 . . . . . . 1 . . . 6 3 . . . 2 . . 11 19 AOE 61 | . . . . . . . 1 . 2 2 . 9 5 5 4 . . . . . 4 . . . 1 . 7 . 4 2 . . . 1 . . 6 8 Classes Destroyed 22 | 2 5 1 . . 3 2 1 . . 1 . . . 1 . 1 . . 1 . 1 1 . . . . . . . . . . . 1 1 . . . Worker 10 | . . . . . . 1 . . . . . . 1 . . . . . . . . . . 2 2 . . . . 3 . . . . . 1 . . Builder 12 | . 2 . . . . . . . . . . . 5 . . . . . . . 2 . . . 1 . . . . . . . 1 . . 1 . . Tunneler 5 | 3 . . . . . . . 1 . . . . . . . . . . . . . . . . 1 . . . . . . . . . . . . . Hauler 5 | . 1 1 . . . 2 . 1 . . . . . . . . . . . . . . . . . . . . . . . . . . . . . . Recycler 15 | 1 . . 1 . . 4 . . . . . . 6 . . . . 1 . . . . . . 2 . . . . . . . . . . . . . Operator 5 | . 1 . . . . . . . . . . . . . . . . . . . . . 4 . . . . . . . . . . . . . . . Watcher 1 | . . . . . . . . . . . . . . . . . . . . . . 1 . . . . . . . . . . . . . . . . Swarmer 33 | . 6 . . . 7 . . . . . . . . 1 4 . . . . . 4 . . . . . . . 3 3 . . . . . . 5 . Grunt 71 | . 9 . 3 . 5 2 . 2 2 1 . 9 3 . 7 . 4 4 . . 2 . . 1 1 . 7 . 6 1 . . . . . . 2 . Brawler 7 | . . . . . 2 . . . . 1 . . 1 . . . . . . . . . . . . . . . 3 . . . . . . . . . Duelist 11 | . . . . . 1 . . . . . . 2 . 5 . . . . . . . . . . . . . . 3 . . . . . . . . . Sentry 25 | . . 1 . . . 1 . . . . . . 2 1 1 . . . . . 3 . 4 1 3 . . . 1 1 . . 4 . 1 . 1 . Specialist 2 | . . . . . . . . . . . . . . . . . . . . . . . . . . . . . . . . . . 2 . . . . Hunter 31 | . . . . . 1 . . . . . . . 3 . . . . . . . 2 1 . 2 4 . 2 . 5 . . . . 5 . 4 2 . Programmer 48 | . . . . . . 1 . . . . . . 3 . . . 2 6 . 1 . 1 . 2 3 . . . . 4 . . 2 11 2 2 8 . Behemoth 1 | . . . . . . . . . . . . . . . . . . . . . 1 . . . . . . . . . . . . . . . . . Compactor 5 | . . . . . . . 5 . . . . . . . . . . . . . . . . . . . . . . . . . . . . . . . Cetus Guard 4 | . . . . . . . . . . . . . . . . . . . . . . 4 . . . . . . . . . . . . . . . . M Guard 2 | . . . . . . . . . . . . . . . . . . . . . . . . . . . . . . . . . . . . . 2 . Enhanced Grunt 21 | . . . . . . . . . . . 4 . . . . . . . . . . . . . . . . . . . . . . . . . . 17 Enhanced Sentry 2 | . . . . . . . . . . . . . . . . . . . . . . . . . . . . . . . . . . . . . . 2 Enhanced Hunter 8 | . . . . . . . . . . . . . . . . . . . . . . . . . . . . . . . . . . . . . . 8 Combat Programmer 2 | . . . . . . . . . . . . . . . . . . . . . . . . . . . . . . . . . . . . . 2 . Executioner 2 | . . . . . . . . . . . . . . . . . . . . . . . . . . . . . . . . . . . 2 . . . Zionite 1 | . . . . . . . . . . . . . . . . 1 . . . . . . . . . . . . . . . . . . . . . . Tinkerer 1 | . . . . . . . . . . . . . . 1 . . . . . . . . . . . . . . . . . . . . . . . . Surgeon 1 | . . . . . . . . . . . . . . . . . . . 1 . . . . . . . . . . . . . . . . . . . Thug 1 | . . . . . . . . . . . . . . . . . . . 1 . . . . . . . . . . . . . . . . . . . Savage 1 | . . . . . . . . . . . . . . . . . . . . . . 1 . . . . . . . . . . . . . . . . Guerrilla 1 | . . . . . . . . . . . . . . . . . . . . . . 1 . . . . . . . . . . . . . . . . Mutant 1 | . . . . . . . . . . 1 . . . . . . . . . . . . . . . . . . . . . . . . . . . . Best Kill Streak 8 | 4 6 1 3 . 6 2 1 2 2 3 4 4 8 7 5 . 6 6 . 1 6 5 2 3 3 . 5 . 4 5 . . 2 3 2 5 7 4 Combat Bots Only 7 | . 6 1 3 . 6 2 1 2 2 3 4 4 4 7 5 . 6 6 . 1 6 4 1 2 3 . 5 . 4 3 . . 2 3 2 2 7 4 Max Kills in Single Turn 4 | 1 2 1 1 . 1 1 1 1 1 1 1 4 4 1 2 1 1 1 1 1 2 1 1 2 1 . 2 . 2 2 . . 1 1 1 1 3 2 Gunslinging 1 | . 1 . . . . . . . . . . . . . . . . . . . . . . . . . . . . . . . . . . . . . Exploded 4 | . . . . . . . 1 . 1 1 . 4 2 1 2 . . . . . 2 . . . 1 . 2 . 1 1 . . . 1 . . 3 1 Melee 1 | . . . . . . . 1 . . . . . . . . . . . . . . . . . 1 . . . . . . . . 1 1 1 1 . Uniques/NPCs Destroyed 6 | . . . . . . . . . . . 1 . . . . . . . . . . . . . . . . . . . . . . . . . 1 4 Data Miner (-7/Data Miner) MAIN.C Shell (-1/Command) MAIN.C (-1/Command) A8 (-1/Access_0) A6 (-1/Access_0) A5 (-1/Access_0) Architect (-1/Access_0) Combat | -11 -10 -9 -9 -8 -8 -7 -7 -7 -7 -7 -7 -6 -6 -6 -6 -6 -5 -5 -5 -5 -5 -5 -5 -5 -4 -4 -4 -4 -3 -3 -3 -3 -2 -2 -2 -1 -1 -1 -------- Run | Scr Mat Mat Min Mat Gar Fac Was Fac Low Low Dat Pro Fac Low Low Zio Pro Fac Was Fac Ext Cet Arc Hub Fac Upp Upp Zhi Pro Res Arm Lab Res Tes Sec Acc Com Ac0 Damage Taken 31137 | . 525 . 85 . 562 220 . 93 . 68 913 472 705 788 910 . 217 426 . 18 1573 541 320 325 995 . 360 . 2579 478 83 . 330 3874 2047 618 5119 5893 Core 2117 | . 109 . . . 43 17 . 15 . . 47 14 44 39 56 . 2 1 . . 156 1 . 15 84 . 48 . 219 15 . . 4 250 158 47 142 591 Absorbed by Shields 9866 | . . . 21 . 144 21 . . . 27 . 173 265 32 117 . . . . . . 86 334 131 211 . 140 . 59 190 31 . 176 1154 474 452 2012 3616 Reduced by Siege Mode 720 | . . . . . . . . . . . 12 . . . . . 6 . . . . 21 4 4 . . . . 15 13 . . 18 242 . 9 217 159 Core Remaining (%) 76 | 100 56 . 100 . 92 . . . . . . 86 . . . . 83 . . . . . . 82 . . . . 69 . . 92 . . 53 . . 30 Volleys Fired 1225 | 7 60 4 9 . 77 32 93 7 5 6 16 14 42 11 21 1 12 30 3 3 54 18 36 25 68 1 13 . 73 34 . . 45 60 5 18 86 236 Largest 3 | 2 2 3 3 . 3 3 3 1 1 1 1 3 3 1 3 3 3 3 3 3 3 3 3 3 3 1 2 . 3 2 . . 1 1 1 1 3 1 Hottest 336 | 40 130 105 105 . 105 168 108 28 36 36 36 108 146 36 92 84 84 90 84 84 121 131 101 101 151 28 79 . 336 100 . . 100 100 40 88 261 200 Shots Fired 1912 | 14 107 12 27 . 161 94 96 7 5 6 16 21 99 11 57 3 36 72 9 9 100 42 100 57 97 1 17 . 110 42 . . 45 61 5 18 119 236 Gun 964 | 14 81 . . . 1 93 . 7 1 2 . 8 86 . 53 3 36 63 9 9 76 36 100 50 38 1 . . 25 27 . . 28 40 . . 6 71 Cannon 731 | . 16 12 27 . 131 . 76 . . . . . 2 . . . . 8 . . . . . 7 41 . . . 70 15 . . 16 17 . 15 113 165 Launcher 133 | . . . . . . . 11 . 4 4 16 13 11 11 4 . . . . . 4 6 . . 17 . 17 . 15 . . . . . . . . . Special 84 | . 10 . . . 29 1 9 . . . . . . . . . . 1 . . 20 . . . 1 . . . . . . . 1 4 5 3 . . Kinetic 932 | 14 59 12 27 . 132 63 . 7 1 2 . 5 86 . 53 3 36 63 9 9 74 31 100 50 37 1 . . 15 13 . . . 1 . . 29 . Thermal 551 | . 26 . . . 29 27 76 . . . . 3 2 . . . . 8 . . . . . 7 41 . . . 33 14 . . 28 35 . . 60 162 Explosive 68 | . . . . . . . 11 . 4 4 . 13 11 . 4 . . . . . 4 . . . 9 . 5 . 3 . . . . . . . . . Electromagnetic 245 | . 22 . . . . 3 . . . . 16 . . 11 . . . . . . 2 11 . . 9 . 12 . 59 15 . . 16 21 . 15 30 3 Slashing 71 | . . . . . . . . . . . . . . . . . . . . . . . . . . . . . . . . . . . . . . 71 Robot Hit Streak 63 | 5 8 6 11 . 26 12 13 3 2 7 6 9 13 6 9 6 44 12 7 3 15 12 43 25 10 6 5 . 9 41 . . 13 23 24 6 63 22 Robot Miss Streak 10 | 1 4 3 2 . 4 5 2 5 2 3 . 3 10 1 7 2 2 7 5 6 6 2 3 1 4 1 1 . 4 6 . . 2 5 1 1 2 2 Penetration Max 1 | . . . . . . . . . . . . . . . . . . . . . . . 1 1 . . . . 1 1 . . . . . . . . Secondary Targets 10 | . 2 . . . . . . . . . . . . . 3 . 1 . . . 2 . . 1 . . . . 1 . . . . . . . . . Max Gunslinging Chain 1 | . 1 . . . . . . . . . . . . . 1 . 1 . . . 1 . . 1 . . . . 1 . . . . . . . . . Capacitor 236 | . . . . . . . . . . . . . . . . . . . . . . . . . . . . . . . . . . . . . . 236 Shots Hit Robots 1581 | 10 57 6 16 . 115 62 148 10 5 5 5 17 86 11 52 1 34 67 9 6 93 31 70 37 52 1 12 . 69 38 . . 49 87 21 23 101 175 Core Hits 1019 | 5 25 3 5 . 43 26 14 9 13 8 15 41 98 18 46 2 43 61 18 2 84 15 21 18 40 2 25 . 38 28 . . 22 32 8 8 73 110 Critical Hits 88 | 1 . . . . 5 . . . . . . . . . . . . . . . . 1 9 . 2 . . . 3 4 . . . 6 3 1 11 42 Critical Kills 21 | . . . . . . . . . . . . . . . . . . . . . . . 4 . 1 . . . 2 1 . . . 1 1 . 2 9 Critical Parts Destroyed 51 | 1 . . . . 5 . . . . . . . . . . . . . . . . 1 5 . . . . . 1 3 . . . 5 2 1 4 23 Melee Attacks 507 | . . 5 . . . 4 108 19 5 8 1 . 6 3 10 . . . . . 1 . . 4 12 . . . 2 22 13 15 30 76 120 19 24 . Impact 264 | . . 5 . . . 4 108 19 . 3 . . 6 3 10 . . . . . 1 . . 4 12 . . . 2 22 13 15 30 7 . . . . Slashing 243 | . . . . . . . . . 5 5 1 . . . . . . . . . . . . . . . . . . . . . . 69 120 19 24 . Piercing . | . . . . . . . . . . . . . . . . . . . . . . . . . . . . . . . . . . . . . . . Sneak Attacks 91 | . . . . . . . 76 2 . . 1 . . 3 . . . . . . 1 . . . 3 . . . . . . . 1 1 . 3 . . Combat Hostiles 78 | . . . . . . . 76 . . . . . . . . . . . . . . . . . 2 . . . . . . . . . . . . . Follow-up Attacks . | . . . . . . . . . . . . . . . . . . . . . . . . . . . . . . . . . . . . . . . Damage Inflicted 84844 | 120 857 121 265 . 1564 742 8597 303 514 312 733 1947 2513 1017 1131 14 900 1367 331 45 2104 1134 1778 1026 3264 37 1309 . 3245 1446 . . 1620 4111 1085 1463 10036 27793 Guns 16491 | 119 678 . . . . 742 . 114 27 51 . 143 1269 . 679 14 900 1045 331 45 1439 695 1633 978 699 37 . . 581 741 . . 661 1208 . . 191 1471 Cannons 28459 | . 132 121 238 . 1254 . 1600 . . . . . 52 . . . . 322 . . . . . . 884 . . . 1592 348 . . 499 522 . 476 6025 14394 Explosions 26892 | . 30 . . . . . 1622 . 246 144 621 1804 1192 762 452 . . . . . 588 439 . 48 1415 . 1309 . 1072 326 . . . 179 . . 2715 11928 Melee 12433 | . . . . . . . 5375 189 241 117 112 . . 255 . . . . . . 63 . . . 266 . . . . . . . 460 2202 1085 987 1081 . Ramming 259 | 1 17 . 27 . . . . . . . . . . . . . . . . . 14 . 145 . . . . . . 31 . . . . . . 24 . Kinetic 14483 | 119 430 121 238 . 1254 423 . 114 27 51 . 86 1269 . 679 14 900 1045 331 45 1439 560 1633 978 674 37 . . 347 476 . . . 22 . . 1171 . Thermal 41782 | . 192 . . . 310 285 1600 . . . 169 57 52 162 . . . 322 . . . . . . 1586 . 143 . 982 591 . . 661 1270 . . 7176 26224 Explosive 7157 | . . . . . . . 1622 . 246 144 . 1804 1192 . 452 . . . . . 588 . . . 293 . 476 . 340 . . . . . . . . . Electromagnetic 7259 | . 218 . . . . 34 . . . . 452 . . 600 . . . . . . . 574 . 48 445 . 690 . 1576 348 . . 499 617 . 476 584 98 Impact 6608 | . . . . . . . 5375 189 . . . . . 255 . . . . . . 63 . . . 266 . . . . . . . 460 . . . . . Slashing 7296 | . . . . . . . . . 241 117 112 . . . . . . . . . . . . . . . . . . . . . . 2202 1085 987 1081 1471 Piercing . | . . . . . . . . . . . . . . . . . . . . . . . . . . . . . . . . . . . . . . . Highest Corruption 37 | . . . . . . 1 37 6 4 . . . 2 3 . . . 1 1 . . . . . . . . . . 1 1 1 1 11 17 2 24 2 Average Corruption 11 | . . . . . . 1 19 4 2 . . . 1 1 . . . 1 1 . . . . . . . . . . 1 1 1 1 6 8 1 3 1 Corruption Purged 103 | . . . . . . 1 48 2 4 . . . . 3 . . . . 1 . . . . . . . . . . . . . . 19 13 1 11 . Effects 559 | . . . . . . 2 378 8 10 . . . 10 3 . . . . 1 . . . . . . . . . . . . . 2 56 55 2 26 6 Message Errors 141 | . . . . . . . 102 2 2 . . . 2 . . . . . . . . . . . . . . . . . . . 2 14 13 1 2 1 Matter Fused 77 | . . . . . . . 48 1 1 . . . . . . . . . . . . . . . . . . . . . . . . 14 10 . 3 . Heat Flow Errors 51 | . . . . . . . 37 1 2 . . . 1 . . . . . . . . . . . . . . . . . . . . 2 5 . 2 1 Energy Discharges 68 | . . . . . . . 55 1 4 . . . 1 1 . . . . . . . . . . . . . . . . . . . . 4 . 1 1 Parts Rejected 6 | . . . . . . . 1 . . . . . . . . . . . . . . . . . . . . . . . . . . 3 . . 2 . Data Loss (minor) 74 | . . . . . . 1 50 2 1 . . . 1 2 . . . . 1 . . . . . . . . . . . . . . 6 5 1 3 1 Data Loss (major) 30 | . . . . . . . 18 1 . . . . . . . . . . . . . . . . . . . . . . . . . 8 2 . 1 . Misfires 1 | . . . . . . . . . . . . . . . . . . . . . . . . . . . . . . . . . . 1 . . . . Alerts 8 | . . . . . . . 6 . . . . . . . . . . . . . . . . . . . . . . . . . . . 2 . . . Misdirections 21 | . . . . . . . 16 . . . . . . . . . . . . . . . . . . . . . . . . . . 3 2 . . . Targeting Errors 74 | . . . . . . 1 40 . . . . . 5 . . . . . . . . . . . . . . . . . . . . 5 12 . 9 2 Weapon Failures 8 | . . . . . . . 5 . . . . . . . . . . . . . . . . . . . . . . . . . . . . . 3 . Overload Shots 4 | . . . . . . . . . . . . . . . . . . . . . . . . . . . . . 4 . . . . . . . . . Overflow Damage 3502 | . . . . . . . 158 8 49 . 26 13 14 77 . . . . . . 72 7 11 . 248 . 8 . 72 16 . . 109 132 17 340 758 1367 Projectiles 1279 | . . . . . . . . . . . . . 3 . . . . . . . . . . . 75 . . . 34 . . . . . . . 308 859 Explosions 1187 | . . . . . . . . . . . 26 13 11 9 . . . . . . 72 7 . . 155 . 8 . 38 . . . . . . . 340 508 Melee 1036 | . . . . . . . 158 8 49 . . . . 68 . . . . . . . . 11 . 18 . . . . 16 . . 109 132 17 340 110 . Knockbacks 40 | . 1 1 . . 18 . . 1 . . . . . 1 . . . . . . . . 1 . 1 . . . . . . . 4 2 . . 10 . Impact 9 | . . . . . . . . 1 . . . . . 1 . . . . . . . . 1 . 1 . . . . . . . 4 . . . 1 . Kinetic 31 | . 1 1 . . 18 . . . . . . . . . . . . . . . . . . . . . . . . . . . . 2 . . 9 . Secondary . | . . . . . . . . . . . . . . . . . . . . . . . . . . . . . . . . . . . . . . . Self-Inflicted Damage 1151 | . . . . . . . . . . . . 160 86 321 . . . . . . 38 . . 9 69 . 6 . 250 145 . . . 24 . . . 43 Shots 50 | . . . . . . . . . . . . 3 4 12 . . . . . . 2 . . 1 7 . 6 . 11 2 . . . 1 . . . 1 Rammed 17 | 1 5 . 2 . . . . . . . . . . . . . . . . . 2 . 5 . . . . . . 1 . . . . . . 1 . Targets Rammed 17 | 1 5 . 2 . . . . . . . . . . . . . . . . . 2 . 5 . . . . . . 1 . . . . . . 1 . Kicked . | . . . . . . . . . . . . . . . . . . . . . . . . . . . . . . . . . . . . . . . Crushed . | . . . . . . . . . . . . . . . . . . . . . . . . . . . . . . . . . . . . . . . Highest Temperature 465 | . 297 84 163 . 243 24 283 100 198 44 274 75 204 18 . . . 24 . . 9 389 271 114 193 . 101 . 465 5 3 . 136 240 238 132 375 196 Average Temperature 88 | . 67 36 69 . 89 7 107 47 66 19 131 44 60 12 . . . 11 . . 5 150 110 47 62 . 33 . 112 3 3 . 26 35 95 63 110 90 Received Heat Transfer 2239 | . 165 . 46 . 150 71 . 54 . 42 126 96 90 24 213 . 57 162 . . 252 90 44 12 86 . 52 . 87 30 30 . 30 118 24 . 64 24 Effects 9 | . . . . . . . 4 . . . 2 . . . . . . . . . . 2 . . . . . . 1 . . . . . . . . . Shutdowns 2 | . . . . . . . . . . . . . . . . . . . . . . 1 . . . . . . 1 . . . . . . . . . Energy Bleed 1 | . . . . . . . . . . . . . . . . . . . . . . 1 . . . . . . . . . . . . . . . . Interference 6 | . . . . . . . 4 . . . 2 . . . . . . . . . . . . . . . . . . . . . . . . . . . Siege Activations 50 | . . . . . . . . . . . 1 . . . . . 1 . . . . 3 6 3 . . . . 2 5 . . 6 3 . 2 6 12 Total Turns 1011 | . . . . . . . . . . . 26 . . . . . 41 . . . . 39 93 69 . . . . 30 76 . . 80 139 . 18 155 245 Longest Duration 79 | . . . . . . . . . . . 26 . . . . . 41 . . . . 27 24 55 . . . . 17 28 . . 36 67 . 12 41 79 Robots Corrupted 37 | . . . . . . . . . . . 4 . . 2 . . . . . . . 4 . . 3 . 2 . 7 . . . 4 2 . 4 4 1 Combat Hostiles 37 | . . . . . . . . . . . 4 . . 2 . . . . . . . 4 . . 3 . 2 . 7 . . . 4 2 . 4 4 1 Parts Fried 67 | . 2 . . . . . . 2 . . 4 . . 5 . . . . . . . 4 . . 4 . 5 . 10 3 . . 7 3 . 5 6 7 Impact Corruptions 21 | . . . 1 . . . 8 1 . . . . . 2 . . . . . . . . 1 . 1 . . . . 1 . . 6 . . . . . Robots Melted 3 | . . . . . . . . . . . . . . . . . . . . . . . . . . . . . . . . . . 1 . . . 2 Combat Hostiles 3 | . . . . . . . . . . . . . . . . . . . . . . . . . . . . . . . . . . 1 . . . 2 Parts Melted 31 | . . . . . . 1 . . . . . . . . . . . . . . . . . . . . . . . 4 . . 9 14 . . 2 1 Heat Transferred 25105 | . 457 . . . 1036 636 2590 . . . 200 125 25 50 . . . 175 . . . . . . 975 . 150 . 823 681 . . 703 1186 . . 3669 11624 Parts Sabotaged . | . . . . . . . . . . . . . . . . . . . . . . . . . . . . . . . . . . . . . . . Parts Stolen . | . . . . . . . . . . . . . . . . . . . . . . . . . . . . . . . . . . . . . . . Parts Stripped . | . . . . . . . . . . . . . . . . . . . . . . . . . . . . . . . . . . . . . . . Power Chain Reactions 14 | . 1 . . . . . . . . . 2 . . 3 . . . . . . . . . . 1 . 1 . 2 3 . . . 1 . . . . Missiles Intercepted 4 | . . . . . . . . . . . . . . . . . . . . . . . . . . . . . . . . . . . . . 4 . Alert | -11 -10 -9 -9 -8 -8 -7 -7 -7 -7 -7 -7 -6 -6 -6 -6 -6 -5 -5 -5 -5 -5 -5 -5 -5 -4 -4 -4 -4 -3 -3 -3 -3 -2 -2 -2 -1 -1 -1 ------- Run | Scr Mat Mat Min Mat Gar Fac Was Fac Low Low Dat Pro Fac Low Low Zio Pro Fac Was Fac Ext Cet Arc Hub Fac Upp Upp Zhi Pro Res Arm Lab Res Tes Sec Acc Com Ac0 Peak Influence 1357 | 20 262 114 70 32 515 347 1357 978 . . . . 388 . . . . 264 42 117 221 163 317 303 1221 . . . . 232 164 . 138 175 247 239 204 . Average Influence 391 | 13 120 89 37 28 380 248 807 893 . . . . 145 . . . . 83 5 61 67 114 208 129 548 . . . . 134 146 . 61 87 74 113 85 . Maximum Alert Level 4 | . 1 . . . 2 1 4 3 . . . . 1 . . . . 1 . . 1 . 1 1 4 . . . . 1 . . . . 1 1 2 . Low Security (%) 47 | 100 67 100 100 100 16 30 2 . . . . . 79 . . . . 85 100 100 97 100 43 84 38 . . . . 64 100 . 100 100 93 71 25 . Level 1 11 | . 32 . . . 12 69 7 . . . . . 20 . . . . 14 . . 2 . 56 15 3 . . . . 35 . . . . 6 28 10 . Level 2 9 | . . . . . 71 . 4 . . . . . . . . . . . . . . . . . 18 . . . . . . . . . . . 63 . Level 3 30 | . . . . . . . 83 100 . . . . . . . . . . . . . . . . 27 . . . . . . . . . . . . . Level 4 1 | . . . . . . . 1 . . . . . . . . . . . . . . . . . 12 . . . . . . . . . . . . . Level 5 . | . . . . . . . . . . . . . . . . . . . . . . . . . . . . . . . . . . . . . . . High Security . | . . . . . . . . . . . . . . . . . . . . . . . . . . . . . . . . . . . . . . . Max Security . | . . . . . . . . . . . . . . . . . . . . . . . . . . . . . . . . . . . . . . . Squads Dispatched 50 | . 5 . . . . 2 . 2 . . . . 7 . . . . 3 . 1 . . . 2 6 . . . 1 1 . . 2 9 7 1 1 . Investigation 7 | . 1 . . . . . . 1 . . . . . . . . . . . . . . . . . . . . . . . . 1 1 2 1 . . Extermination 18 | . . . . . . 1 . . . . . . 1 . . . . 1 . . . . . 1 1 . . . . 1 . . 1 5 5 . 1 . Reinforcement 15 | . 4 . . . . 1 . . . . . . 2 . . . . 2 . 1 . . . 1 2 . . . . . . . . 2 . . . . Assault 4 | . . . . . . . . . . . . . . . . . . . . . . . . . 2 . . . 1 . . . . 1 . . . . Garrison 6 | . . . . . . . . 1 . . . . 4 . . . . . . . . . . . 1 . . . . . . . . . . . . . Intercept . | . . . . . . . . . . . . . . . . . . . . . . . . . . . . . . . . . . . . . . . Construction Impeded 4 | . . . . . . . . . . . . . 2 . . . . . . 1 . . . 1 . . . . . . . . . . . . . . Haulers Reinforced 3 | . . . . . . 1 . . . . . . . . . . . 1 . . . . . . 1 . . . . . . . . . . . . . Stealth | -11 -10 -9 -9 -8 -8 -7 -7 -7 -7 -7 -7 -6 -6 -6 -6 -6 -5 -5 -5 -5 -5 -5 -5 -5 -4 -4 -4 -4 -3 -3 -3 -3 -2 -2 -2 -1 -1 -1 --------- Run | Scr Mat Mat Min Mat Gar Fac Was Fac Low Low Dat Pro Fac Low Low Zio Pro Fac Was Fac Ext Cet Arc Hub Fac Upp Upp Zhi Pro Res Arm Lab Res Tes Sec Acc Com Ac0 Distress Signals 33 | . 1 . . . . . . . . . . . 3 . . . . . . . 1 1 . 1 1 . . . . 1 . . . 1 . . 23 . Communications Jammed 31 | . . . . . . . . . . . . . . . . . . . . . . . . . . . . . . . . . . 31 . . . . Distress Signals 31 | . . . . . . . . . . . . . . . . . . . . . . . . . . . . . . . . . . 31 . . . . Times Spotted 462 | . 32 1 3 1 18 7 6 3 3 5 4 12 20 8 14 . 6 11 4 3 32 7 21 8 20 . 11 . 38 15 6 . 9 28 8 7 29 62 Peak Tracking Total 7 | . 7 1 3 1 6 2 2 2 4 2 4 4 7 7 5 . 6 4 3 2 5 5 1 4 7 . 3 . 6 3 3 . 4 5 2 3 7 5 Tactical Retreats 22 | . . . . . . . . . . . . 4 . 1 1 . . 1 . . 1 . . 1 1 . 1 . 5 . . . 1 3 1 . 1 . Traps | -11 -10 -9 -9 -8 -8 -7 -7 -7 -7 -7 -7 -6 -6 -6 -6 -6 -5 -5 -5 -5 -5 -5 -5 -5 -4 -4 -4 -4 -3 -3 -3 -3 -2 -2 -2 -1 -1 -1 ------- Run | Scr Mat Mat Min Mat Gar Fac Was Fac Low Low Dat Pro Fac Low Low Zio Pro Fac Was Fac Ext Cet Arc Hub Fac Upp Upp Zhi Pro Res Arm Lab Res Tes Sec Acc Com Ac0 Traps Triggered 21 | . . . . . 5 1 . . . . . . 1 . . . . 1 . 1 6 . . . . . . . . . . . . 3 . . 3 . Indirectly . | . . . . . . . . . . . . . . . . . . . . . . . . . . . . . . . . . . . . . . . Trap Hack Attempts . | . . . . . . . . . . . . . . . . . . . . . . . . . . . . . . . . . . . . . . . Triggered . | . . . . . . . . . . . . . . . . . . . . . . . . . . . . . . . . . . . . . . . Disarmed . | . . . . . . . . . . . . . . . . . . . . . . . . . . . . . . . . . . . . . . . Reprogrammed . | . . . . . . . . . . . . . . . . . . . . . . . . . . . . . . . . . . . . . . . Reused . | . . . . . . . . . . . . . . . . . . . . . . . . . . . . . . . . . . . . . . . Traps Extracted . | . . . . . . . . . . . . . . . . . . . . . . . . . . . . . . . . . . . . . . . Installed . | . . . . . . . . . . . . . . . . . . . . . . . . . . . . . . . . . . . . . . . Triggered 2 | . . . . . . . . . . . . . . . . . . . . . . . . . . . 2 . . . . . . . . . . . Machines | -11 -10 -9 -9 -8 -8 -7 -7 -7 -7 -7 -7 -6 -6 -6 -6 -6 -5 -5 -5 -5 -5 -5 -5 -5 -4 -4 -4 -4 -3 -3 -3 -3 -2 -2 -2 -1 -1 -1 ---------- Run | Scr Mat Mat Min Mat Gar Fac Was Fac Low Low Dat Pro Fac Low Low Zio Pro Fac Was Fac Ext Cet Arc Hub Fac Upp Upp Zhi Pro Res Arm Lab Res Tes Sec Acc Com Ac0 Machines Disabled 81 | . . . . . 1 . . 1 . . . . 1 . . . . . . . 3 . 6 7 31 . 1 . 1 . 1 1 . 8 8 . 2 9 Max in Single Turn 13 | . . . . . 1 . . 1 . . . . 1 . . . . . . . 1 . 2 6 13 . 1 . 1 . 1 1 . 2 1 . 1 3 Garrison Access 5 | . . . . . . . . 1 . . . . 1 . . . . . . 1 . . . . 1 . . . . 1 . . . . . . . . Garrison Relay 1 | . . . . . 1 . . . . . . . . . . . . . . . . . . . . . . . . . . . . . . . . . Network Hub 1 | . . . . . . . . . . . . . . . . . . . . . . . . 1 . . . . . . . . . . . . . . Machines Sabotaged . | . . . . . . . . . . . . . . . . . . . . . . . . . . . . . . . . . . . . . . . Garrisons Compromised . | . . . . . . . . . . . . . . . . . . . . . . . . . . . . . . . . . . . . . . . Overloaded Fab Kills . | . . . . . . . . . . . . . . . . . . . . . . . . . . . . . . . . . . . . . . . Fab Network Shutdowns . | . . . . . . . . . . . . . . . . . . . . . . . . . . . . . . . . . . . . . . . Hacking | -11 -10 -9 -9 -8 -8 -7 -7 -7 -7 -7 -7 -6 -6 -6 -6 -6 -5 -5 -5 -5 -5 -5 -5 -5 -4 -4 -4 -4 -3 -3 -3 -3 -2 -2 -2 -1 -1 -1 --------- Run | Scr Mat Mat Min Mat Gar Fac Was Fac Low Low Dat Pro Fac Low Low Zio Pro Fac Was Fac Ext Cet Arc Hub Fac Upp Upp Zhi Pro Res Arm Lab Res Tes Sec Acc Com Ac0 Machines Accessed 79 | . 4 2 . 2 . 2 . 2 . . 4 1 6 1 . 1 . 4 . 2 12 1 . 2 3 . . 4 . 4 1 . 2 6 7 2 4 . Terminals 53 | . 3 2 . 1 . . . 1 . . . 1 5 . . . . 3 . 1 12 1 . 2 1 . . . . 2 1 . 1 3 7 2 4 . Fabricators 5 | . . . . . . 2 . . . . . . . . . . . 1 . . . . . . 1 . . . . . . . . 1 . . . . Repair Stations . | . . . . . . . . . . . . . . . . . . . . . . . . . . . . . . . . . . . . . . . Recycling Units 1 | . 1 . . . . . . . . . . . . . . . . . . . . . . . . . . . . . . . . . . . . . Scanalyzers 3 | . . . . . . . . . . . . . . . . . . . . . . . . . . . . . . 1 . . . 2 . . . . Garrison Access 7 | . . . . 1 . . . 1 . . . . 1 . . . . . . 1 . . . . 1 . . . . 1 . . 1 . . . . . Total Hacks 375 | . 12 11 . 6 . 6 . 11 . . 24 4 12 1 . 3 . 17 . 15 49 4 . 20 17 . . 17 . 17 6 . 11 44 36 17 15 . Successful 256 | . 7 10 . 3 . 2 . 4 . . 24 4 6 1 . 3 . 7 . 9 34 3 . 8 7 . . 17 . 9 4 . 7 38 28 10 11 . Failed 116 | . 5 1 . 3 . 4 . 7 . . . . 6 . . . . 10 . 6 15 1 . 12 10 . . . . 8 2 . 4 5 7 6 4 . Catastrophic 8 | . 1 . . . . 1 . 1 . . . . . . . . . 1 . 1 . . . . . . . . . 1 . . 1 . . . 1 . Database Lockouts 3 | . . . . . . . . . . . . . . . . . . . . . . . . . . . . . . . . . . 1 1 1 . . Manual 198 | . 5 7 . 3 . 3 . 3 . . . 3 4 . . . . 8 . 12 35 5 . 13 8 . . . . 6 3 . 7 25 25 14 9 . Terminals 266 | . 11 11 . 4 . . . 7 . . . 4 10 . . . . 11 . 13 49 4 . 20 8 . . . . 8 6 . 7 25 36 17 15 . Fabricators 22 | . . . . . . 6 . . . . . . . . . . . 6 . . . . . . 5 . . . . . . . . 5 . . . . Repair Stations . | . . . . . . . . . . . . . . . . . . . . . . . . . . . . . . . . . . . . . . . Recycling Units 1 | . 1 . . . . . . . . . . . . . . . . . . . . . . . . . . . . . . . . . . . . . Scanalyzers 19 | . . . . . . . . . . . . . . . . . . . . . . . . . . . . . . 5 . . . 14 . . . . Garrison Access 22 | . . . . 2 . . . 4 . . . . 2 . . . . . . 2 . . . . 4 . . . . 4 . . 4 . . . . . Terminal Hacks 175 | . 5 7 . 1 . . . 2 . . 24 4 5 1 . 3 . 2 . 7 20 1 . 8 4 . . 17 . 3 2 . 4 18 23 9 5 . Record 18 | . . . . . . . . . . . 11 1 . . . . . . . . . . . . . . . 5 . . . . 1 . . . . . Part Schematic 17 | . . . . . . . . . . . 4 1 . . . 3 . . . . 1 . . 3 . . . 4 . . . . . 1 . . . . Robot Schematic 7 | . . 1 . . . . . . . . 6 . . . . . . . . . . . . . . . . . . . . . . . . . . . Robot Analysis 19 | . 1 1 . . . . . . . . . 1 . . . . . . . 6 . . . . . . . 4 . . . . . 2 . 3 1 . Prototype ID Bank 12 | . 1 . . . . . . . . . 3 . . . . . . . . . 1 . . . . . . 4 . . . . . 2 1 . . . Open Door 17 | . . . . . . . . . . . . . . 1 . . . . . 1 7 . . . . . . . . . . . . 1 5 1 1 . Level Access Points 3 | . . . . . . . . . . . . 1 . . . . . . . . . . . . . . . . . . . . . 1 1 . . . Branch Access Points 6 | . . 1 . . . . . 1 . . . . 1 . . . . . . . . . . . 1 . . . . . . . 1 . . 1 . . Emergency Access Points 2 | . . 1 . . . . . . . . . . . . . . . . . . . . . . . . . . . . . . . . . . 1 . Machine Index 4 | . . . . . . . . . . . . . . . . . . . . . . . . 1 . . . . . . . . . 1 2 . . . Terminal Index 4 | . . 1 . . . . . . . . . . . . . . . . . . 1 . . . . . . . . 1 . . . . . 1 . . Fabricator Index 1 | . . . . . . . . . . . . . . . . . . . . . . . . . . . . . . . 1 . . . . . . . Garrison Index 1 | . . . . . . . . . . . . . . . . . . . . . . . . . . . . . . . . . . . 1 . . . Alert Level 1 | . . . . . . . . . . . . . . . . . . . . . . . . . . . . . . . . . . . . . 1 . Unreport Threat 11 | . . . . . . . . 1 . . . . . . . . . . . . 4 . . 2 . . . . . . . . 1 1 . 2 . . Locate Traps 8 | . 2 . . . . . . . . . . . 3 . . . . 1 . . . . . 1 . . . . . . . . 1 . . . . . Dispatch Records 7 | . . . . . . . . . . . . . . . . . . . . . 2 1 . . . . . . . . . . . 1 2 . 1 . Patrol Status 3 | . . . . . . . . . . . . . . . . . . 1 . . . . . . . . . . . . . . . 1 1 . . . Transport Status 1 | . . . . 1 . . . . . . . . . . . . . . . . . . . . . . . . . . . . . . . . . . Recall Investigation 4 | . . . . . . . . . . . . . . . . . . . . . . . . . . . . . . . . . . 1 2 1 . . Recall Extermination 6 | . . . . . . . . . . . . . . . . . . . . . . . . . . . . . . . . . . 1 5 . . . Recall Reinforcements 2 | . . . . . . . . . . . . . . . . . . . . . . . . . 1 . . . . . . . . 1 . . . . Recall Assault 1 | . . . . . . . . . . . . . . . . . . . . . . . . . . . . . . . . . . 1 . . . . Hauler Manifests 4 | . . 1 . . . . . . . . . . . . . . . . . . . . . . 1 . . . . . . . . 1 1 . . . Registered Components 2 | . 1 . . . . . . . . . . . . . . . . . . . . . . . 1 . . . . . . . . . . . . . Zone Layout 14 | . . 1 . . . . . . . . . . 1 . . . . . . . 4 . . 1 . . . . . 2 1 . . 2 2 . . . Fabricator Hacks 7 | . . . . . . 2 . . . . . . . . . . . 2 . . . . . . 1 . . . . . . . . 2 . . . . Load Schematic 3 | . . . . . . 1 . . . . . . . . . . . 1 . . . . . . . . . . . . . . . 1 . . . . Build 4 | . . . . . . 1 . . . . . . . . . . . 1 . . . . . . 1 . . . . . . . . 1 . . . . Repair Station Hacks . | . . . . . . . . . . . . . . . . . . . . . . . . . . . . . . . . . . . . . . . Recycling Unit Hacks . | . . . . . . . . . . . . . . . . . . . . . . . . . . . . . . . . . . . . . . . Scanalyzer 16 | . . . . . . . . . . . . . . . . . . . . . . . . . . . . . . 3 . . . 13 . . . . Insert Component 9 | . . . . . . . . . . . . . . . . . . . . . . . . . . . . . . 3 . . . 6 . . . . Analyze 7 | . . . . . . . . . . . . . . . . . . . . . . . . . . . . . . . . . . 7 . . . . Garrison Access Hacks 8 | . . . . 1 . . . 1 . . . . 1 . . . . . . 2 . . . . 1 . . . . 1 . . 1 . . . . . Unlock Access 1 | . . . . 1 . . . . . . . . . . . . . . . . . . . . . . . . . . . . . . . . . . Seal Access 5 | . . . . . . . . 1 . . . . 1 . . . . . . 1 . . . . 1 . . . . 1 . . . . . . . . Coupler Status 2 | . . . . . . . . . . . . . . . . . . . . 1 . . . . . . . . . . . . 1 . . . . . Unauthorized Hacks 50 | . 2 3 . 1 . . . 1 . . . . . . . . . 3 . . 14 2 . . 1 . . . . 2 2 . 2 5 5 1 6 . Terminals 41 | . 1 3 . 1 . . . . . . . . . . . . . 1 . . 14 2 . . 1 . . . . 2 2 . . 2 5 1 6 . Track 21 | . 1 1 . . . . . . . . . . . . . . . . . . 8 1 . . . . . . . 1 1 . . 2 2 . 4 . Assimilate 2 | . . . . . . . . . . . . . . . . . . . . . 1 . . . . . . . . 1 . . . . . . . . Botnet 10 | . . 1 . 1 . . . . . . . . . . . . . 1 . . 2 . . . 1 . . . . . 1 . . . 2 . 1 . Disrupt 5 | . . . . . . . . . . . . . . . . . . . . . 2 1 . . . . . . . . . . . . 1 . 1 . Operators 3 | . . 1 . . . . . . . . . . . . . . . . . . 1 . . . . . . . . . . . . . . 1 . . Fabricators 4 | . . . . . . . . . . . . . . . . . . 2 . . . . . . . . . . . . . . . 2 . . . . Prioritize 2 | . . . . . . . . . . . . . . . . . . 1 . . . . . . . . . . . . . . . 1 . . . . Siphon 2 | . . . . . . . . . . . . . . . . . . 1 . . . . . . . . . . . . . . . 1 . . . . Repair Stations . | . . . . . . . . . . . . . . . . . . . . . . . . . . . . . . . . . . . . . . . Recycling Units 1 | . 1 . . . . . . . . . . . . . . . . . . . . . . . . . . . . . . . . . . . . . Tunnel 1 | . 1 . . . . . . . . . . . . . . . . . . . . . . . . . . . . . . . . . . . . . Scanalyzers 1 | . . . . . . . . . . . . . . . . . . . . . . . . . . . . . . . . . . 1 . . . . Researchers 1 | . . . . . . . . . . . . . . . . . . . . . . . . . . . . . . . . . . 1 . . . . Garrison Access 3 | . . . . . . . . 1 . . . . . . . . . . . . . . . . . . . . . . . . 2 . . . . . Reprogram 2 | . . . . . . . . 1 . . . . . . . . . . . . . . . . . . . . . . . . 1 . . . . . Eject 1 | . . . . . . . . . . . . . . . . . . . . . . . . . . . . . . . . . 1 . . . . . Data Cores Recovered . | . . . . . . . . . . . . . . . . . . . . . . . . . . . . . . . . . . . . . . . Used . | . . . . . . . . . . . . . . . . . . . . . . . . . . . . . . . . . . . . . . . Hacking Detections 57 | . 3 2 . 2 . 2 . 2 . . . 1 6 . . . . 4 . 1 7 . . 2 3 . . . . 4 1 . 2 4 5 2 4 . Full Trace Events 2 | . . . . . . . . 1 . . . . . . . . . . . . . . . . . . . . . . . . . . 1 . . . Feedback Events . | . . . . . . . . . . . . . . . . . . . . . . . . . . . . . . . . . . . . . . . Feedback Blocked . | . . . . . . . . . . . . . . . . . . . . . . . . . . . . . . . . . . . . . . . Robot Schematics Acquired 7 | . . 1 . . . . . . . . 6 . . . . . . . . . . . . . . . . . . . . . . . . . . . Robots Built 3 | . . . . . . . . . . . . . . . . . . 1 . . . . . . 2 . . . . . . . . . . . . . Matter 465 | . . . . . . . . . . . . . . . . . . 114 . . . . . . 351 . . . . . . . . . . . . . Time 133 | . . . . . . . . . . . . . . . . . . 40 . . . . . . 93 . . . . . . . . . . . . . Total Robot Build Rating 15 | . . . . . . . . . . . . . . . . . . 1 . . . . . . 14 . . . . . . . . . . . . . Part Schematics Acquired 19 | . . . . . . . . . . . 4 1 . . . 3 . . . . 1 . . 3 . . . 4 . . . . . 3 . . . . Parts Built 3 | . . . . . . 2 . . . . . . . . . . . . . . . . . . . . . . . . . . . 1 . . . . Matter 456 | . . . . . . 168 . . . . . . . . . . . . . . . . . . . . . . . . . . . 288 . . . . Time 110 | . . . . . . 42 . . . . . . . . . . . . . . . . . . . . . . . . . . . 68 . . . . Total Part Build Rating 16 | . . . . . . 8 . . . . . . . . . . . . . . . . . . . . . . . . . . . 8 . . . . Parts Repaired . | . . . . . . . . . . . . . . . . . . . . . . . . . . . . . . . . . . . . . . . Time . | . . . . . . . . . . . . . . . . . . . . . . . . . . . . . . . . . . . . . . . Parts Recycled . | . . . . . . . . . . . . . . . . . . . . . . . . . . . . . . . . . . . . . . . Recycled Matter . | . . . . . . . . . . . . . . . . . . . . . . . . . . . . . . . . . . . . . . . Retrieved Matter . | . . . . . . . . . . . . . . . . . . . . . . . . . . . . . . . . . . . . . . . Retrieved Components . | . . . . . . . . . . . . . . . . . . . . . . . . . . . . . . . . . . . . . . . Parts Scanalyzed 2 | . . . . . . . . . . . . . . . . . . . . . . . . . . . . . . . . . . 2 . . . . Part Schematics Acquired 2 | . . . . . . . . . . . . . . . . . . . . . . . . . . . . . . . . . . 2 . . . . Parts Damaged 1 | . . . . . . . . . . . . . . . . . . . . . . . . . . . . . . . . . . 1 . . . . Bothacking | -11 -10 -9 -9 -8 -8 -7 -7 -7 -7 -7 -7 -6 -6 -6 -6 -6 -5 -5 -5 -5 -5 -5 -5 -5 -4 -4 -4 -4 -3 -3 -3 -3 -2 -2 -2 -1 -1 -1 ------------ Run | Scr Mat Mat Min Mat Gar Fac Was Fac Low Low Dat Pro Fac Low Low Zio Pro Fac Was Fac Ext Cet Arc Hub Fac Upp Upp Zhi Pro Res Arm Lab Res Tes Sec Acc Com Ac0 Used RIF Installer 1 | . . . . . 1 . . . . . . . . . . . . . . . . . . . . . . . . . . . . . . . . . Robots Hacked 18 | . . . . . . 1 5 . . . . . . . . . . 1 . . . . . . 1 . . . . . . . 1 4 4 1 . . Non-combat 9 | . . . . . . 1 . . . . . . . . . . . 1 . . . . . . 1 . . . . . . . 1 2 2 1 . . Combat 9 | . . . . . . . 5 . . . . . . . . . . . . . . . . . . . . . . . . . . 2 2 . . . Robot Hacks Applied 23 | . . . . . . 1 8 . . . . . . . . . . 1 . . . . . . 1 . . . . . . . 1 4 4 3 . . parse_system 3 | . . . . . . . 3 . . . . . . . . . . . . . . . . . . . . . . . . . . . . . . . find_chute 3 | . . . . . . 1 . . . . . . . . . . . 1 . . . . . . 1 . . . . . . . . . . . . . drop_inventory 1 | . . . . . . . . . . . . . . . . . . . . . . . . . . . . . . . . . . 1 . . . . block_reporting 3 | . . . . . . . . . . . . . . . . . . . . . . . . . . . . . . . . . . 1 2 . . . map_route 2 | . . . . . . . . . . . . . . . . . . . . . . . . . . . . . . . . . 1 . . 1 . . disable_scanner 2 | . . . . . . . . . . . . . . . . . . . . . . . . . . . . . . . . . . 1 1 . . . locate_prototypes 2 | . . . . . . . . . . . . . . . . . . . . . . . . . . . . . . . . . . 1 1 . . . ignore_targets 5 | . . . . . . . 5 . . . . . . . . . . . . . . . . . . . . . . . . . . . . . . . link_fov 1 | . . . . . . . . . . . . . . . . . . . . . . . . . . . . . . . . . . . . 1 . . overload_power 1 | . . . . . . . . . . . . . . . . . . . . . . . . . . . . . . . . . . . . 1 . . Relay Couplers Released 7 | . . . . . 3 . . . . . . . . . . . . . . . . . . . . . . . . . . . 4 . . . . . Ejected 4 | . . . . . . . . . . . . . . . . . . . . . . . . . . . . . . . . . 4 . . . . . Machine Destruction 3 | . . . . . 3 . . . . . . . . . . . . . . . . . . . . . . . . . . . . . . . . . Attached 4 | . . . . . . . 1 . . . . . . . . . . . . . . . . . . . . . . . . . 1 1 1 . . . Robots Rewired 19 | . . . . . . . . . . 3 . . . 2 . . . . . . 13 . . . . . . . 1 . . . . . . . . . Allies Hacked . | . . . . . . . . . . . . . . . . . . . . . . . . . . . . . . . . . . . . . . . Hacks Repelled 1 | . . . . . . . . . . . . . . . . . . . . . . . . . 1 . . . . . . . . . . . . . Allies | -11 -10 -9 -9 -8 -8 -7 -7 -7 -7 -7 -7 -6 -6 -6 -6 -6 -5 -5 -5 -5 -5 -5 -5 -5 -4 -4 -4 -4 -3 -3 -3 -3 -2 -2 -2 -1 -1 -1 -------- Run | Scr Mat Mat Min Mat Gar Fac Was Fac Low Low Dat Pro Fac Low Low Zio Pro Fac Was Fac Ext Cet Arc Hub Fac Upp Upp Zhi Pro Res Arm Lab Res Tes Sec Acc Com Ac0 Total Allies 62 | . . . . . . . . 1 . 3 . . . 2 . . . 1 19 . 25 . . . 2 . . . 1 1 . . . . . . 1 6 Largest Group 19 | . . . . . . . . 1 1 3 3 . . 2 . . . 1 19 6 11 7 . . 2 . . . 1 1 . . . . . . 1 6 Highest-Rated Group 696 | . . . . . . . . 32 32 93 85 . . 58 . . . 10 696 276 438 179 . . 112 . . . 64 44 . . . . . . 99 84 Highest-Rated Ally 156 | . . . . . . . . 32 32 32 31 . . 29 . . . 10 50 46 156 36 . . 56 . . . 64 44 . . . . . . 99 15 Total Orders 20 | . . . . . . . . . . . 5 . . . . . . 2 . . 3 . . . 9 . . . . . . . . . . . 1 . STAY 3 | . . . . . . . . . . . 2 . . . . . . . . . . . . . 1 . . . . . . . . . . . . . GOTO 6 | . . . . . . . . . . . 2 . . . . . . 2 . . 1 . . . 1 . . . . . . . . . . . . . FOLLOW 2 | . . . . . . . . . . . 1 . . . . . . . . . . . . . 1 . . . . . . . . . . . . . EXPLORE 7 | . . . . . . . . . . . . . . . . . . . . . . . . . 6 . . . . . . . . . . . 1 . RETURN 2 | . . . . . . . . . . . . . . . . . . . . . 2 . . . . . . . . . . . . . . . . . Ally Attacks 405 | . . . . . . . . 2 5 17 7 . . 6 . . . . 118 26 144 6 . . 18 . . . 21 . . . . . . . 31 4 Total Damage 12842 | . . . . . . . . 123 177 232 87 . . 99 . . . . 4524 389 3191 50 . . 628 . . . 524 . . . . . . . 2760 58 Kills 57 | . . . . . . . . 1 2 2 . . . . . . . . 10 4 28 . . . 3 . . . 3 . . . . . . . 3 1 Allies Corrupted 4 | . . . . . . . . . . . . . . . . . . . . 2 1 . . . . . . . . . . . . . . . 1 . Allies Melted . | . . . . . . . . . . . . . . . . . . . . . . . . . . . . . . . . . . . . . . . Intel | -11 -10 -9 -9 -8 -8 -7 -7 -7 -7 -7 -7 -6 -6 -6 -6 -6 -5 -5 -5 -5 -5 -5 -5 -5 -4 -4 -4 -4 -3 -3 -3 -3 -2 -2 -2 -1 -1 -1 ------- Run | Scr Mat Mat Min Mat Gar Fac Was Fac Low Low Dat Pro Fac Low Low Zio Pro Fac Was Fac Ext Cet Arc Hub Fac Upp Upp Zhi Pro Res Arm Lab Res Tes Sec Acc Com Ac0 Robot Analysis Total 19 | . 1 1 . . . . . . . . . 1 . . . . . . . 6 . . . . . . . 4 . . . . . 2 . 3 1 . Derelict Logs Recovered 10 | . . . 1 . . . . . 1 . . 2 . 1 2 . 1 . . . . . . . . 1 1 . . . . . . . . . . . Drone Launches 10 | . . . . . . . . . . . . . . . . . . . . . 5 . . . 3 . . . . . . . . . . . 2 . Drone Recoveries 5 | . . . . . . . . . . . . . . . . . . . . . 5 . . . . . . . . . . . . . . . . . Exploration | -11 -10 -9 -9 -8 -8 -7 -7 -7 -7 -7 -7 -6 -6 -6 -6 -6 -5 -5 -5 -5 -5 -5 -5 -5 -4 -4 -4 -4 -3 -3 -3 -3 -2 -2 -2 -1 -1 -1 ------------- Run | Scr Mat Mat Min Mat Gar Fac Was Fac Low Low Dat Pro Fac Low Low Zio Pro Fac Was Fac Ext Cet Arc Hub Fac Upp Upp Zhi Pro Res Arm Lab Res Tes Sec Acc Com Ac0 Turns Passed 36426 | 136 1380 585 658 88 914 754 9497 412 803 524 451 374 1240 689 757 298 485 424 684 355 1410 262 573 420 1257 283 568 204 861 584 156 234 747 2091 1458 366 2035 1409 Spaces Moved 12551 | 67 438 183 308 41 302 406 878 196 512 303 238 208 524 419 352 143 216 169 325 196 661 87 169 131 493 185 363 134 334 281 79 113 323 675 601 199 822 477 Core 288 | 8 . . . . . . 280 . . . . . . . . . . . . . . . . . . . . . . . . . . . . . . . Treads 3016 | 59 346 183 308 41 95 . . . . . 39 . . . . 8 202 . . . 40 87 169 131 . . . . 175 7 . . 1 4 . . 644 477 Legs 146 | . . . . . 146 . . . . . . . . . . . . . . . . . . . . . . . . . . . . . . . . . Wheels 9101 | . 92 . . . 61 406 598 196 512 303 199 208 524 419 352 135 14 169 325 196 621 . . . 493 185 363 134 159 274 79 113 322 671 601 199 178 . Hover . | . . . . . . . . . . . . . . . . . . . . . . . . . . . . . . . . . . . . . . . Flight . | . . . . . . . . . . . . . . . . . . . . . . . . . . . . . . . . . . . . . . . Fastest Speed 50 | 50 80 180 200 200 120 120 130 150 150 150 140 140 150 145 145 145 145 145 140 170 140 200 200 200 140 150 130 140 130 140 150 150 160 150 140 130 130 155 Average Speed 216 | 149 151 184 200 200 204 122 976 150 150 150 154 147 150 146 145 148 196 150 163 170 166 200 200 200 141 150 144 140 173 142 150 166 160 155 155 130 167 170 Slowest Speed 2750 | 160 180 200 200 200 240 135 2750 150 150 160 200 150 150 150 145 200 200 160 170 170 200 220 200 200 150 150 150 140 200 200 150 180 270 200 160 130 200 188 Overloaded Moves . | . . . . . . . . . . . . . . . . . . . . . . . . . . . . . . . . . . . . . . . Propulsion Burnouts . | . . . . . . . . . . . . . . . . . . . . . . . . . . . . . . . . . . . . . . . Robots Hopped 2 | . . . . . . . . . . . . . . 2 . . . . . . . . . . . . . . . . . . . . . . . . Cave-ins Triggered 2 | . . . . . . . . . . . . . . . . . . . . . . . . . . . . . . . . . . . 2 . . . Teleports 3 | . . . . . . . . . . . . . . . . . . . . . . . . . . . . . . . 1 . . . . . 1 1 Exploration Rate (%) 42 | 3 72 18 75 5 48 10 88 8 63 44 77 46 20 67 62 12 40 5 86 8 74 48 83 16 16 47 68 60 52 10 8 95 11 65 40 9 67 43 Regions Visited 38 Branch Regions 23 Pre-discovered Areas 6 | . 1 . 1 . . . . . . . 1 . . . . . . . . . . . . . . . . 3 . . . . . . . . . . Known Exits Taken 11 | . . 1 . 1 . . . 1 . . . 1 1 . . . . . . . . . . . 1 . . . . 1 . 1 1 . 1 1 . . Unknown Exits Taken 22 | 1 1 . 1 . . . . . 1 1 1 . . 1 1 1 1 . . 1 1 1 1 1 . 1 1 1 1 . 1 . . 1 . . 1 . Scrap Searched 24 | . . . 2 . . . . . 3 8 . 2 . 1 2 . . . . . . . . . . . 4 . 2 . . . . . . . . . Spaces Dug 249 | . 6 2 . . . 2 10 5 2 5 . . 20 . 6 . . . . . . . . 3 16 . . . 17 9 4 . 5 26 48 6 12 45 Terrain Destroyed 2171 | . 17 2 . . . 2 39 5 6 42 12 129 59 11 55 . . 1 . . 26 . 12 190 244 . 57 . 61 30 4 . 7 39 48 6 20 1047 Melee 156 | . . 2 . . . 2 10 5 2 5 . . 5 . 6 . . . . . . . . 3 7 . . . 2 9 4 . 4 24 48 6 12 . Projectile 151 | . 10 . . . . . . . . . . . 1 . . . . 1 . . 1 . 12 11 17 . . . 9 . . . 3 4 . . 3 79 AOE 1864 | . 7 . . . . . 29 . 4 37 12 129 53 11 49 . . . . . 25 . . 176 220 . 57 . 50 21 . . . 11 . . 5 968 Actions | -11 -10 -9 -9 -8 -8 -7 -7 -7 -7 -7 -7 -6 -6 -6 -6 -6 -5 -5 -5 -5 -5 -5 -5 -5 -4 -4 -4 -4 -3 -3 -3 -3 -2 -2 -2 -1 -1 -1 --------- Run | Scr Mat Mat Min Mat Gar Fac Was Fac Low Low Dat Pro Fac Low Low Zio Pro Fac Was Fac Ext Cet Arc Hub Fac Upp Upp Zhi Pro Res Arm Lab Res Tes Sec Acc Com Ac0 Total 19483 | 85 1016 413 329 46 436 590 1494 269 539 360 304 252 884 477 541 231 253 281 474 212 889 143 325 239 936 189 391 150 503 394 106 143 473 1544 939 261 1369 1003 Wait 3919 | . 440 191 6 . 21 85 377 33 2 9 10 23 266 14 149 77 11 68 121 11 81 19 100 63 325 2 2 . 46 42 . . 48 654 156 8 230 229 Move 12509 | 66 437 182 307 41 301 406 877 195 511 302 237 207 523 414 351 142 215 169 324 195 660 86 168 130 492 184 362 133 333 280 78 112 322 674 598 198 821 476 Hop 2 | . . . . . . . . . . . . . . 2 . . . . . . . . . . . . . . . . . . . . . . . . Pick Up 266 | 4 22 13 1 3 7 17 14 . 1 9 8 2 7 2 . 1 1 4 4 1 7 4 3 3 5 . 5 4 8 3 5 5 10 17 13 2 46 5 Fast Attach 135 | 7 2 2 . 1 2 8 4 3 3 2 5 . 4 1 1 . . 1 5 . 5 3 2 2 1 . 1 3 8 1 1 4 1 6 9 1 29 7 Attach 178 | . 3 1 . 1 6 4 3 3 3 1 7 1 2 8 2 3 8 3 5 . 5 . 1 1 5 . 1 . 15 2 1 . 7 17 10 1 31 17 Detach 108 | . 1 1 . . 1 3 4 4 4 2 3 . 1 3 . 6 5 . 5 . 3 . 1 3 2 . . . 1 2 1 4 1 9 4 . 25 9 Swap 278 | . 32 6 1 . 7 15 4 3 1 4 7 4 17 9 7 . . 3 1 . 13 6 3 5 23 2 2 4 4 6 1 2 6 16 12 14 29 9 Drop 244 | . 14 8 3 . 5 16 10 2 4 11 10 1 8 1 . 1 1 3 6 2 4 7 6 3 3 . 5 6 10 1 6 1 3 13 10 . 45 15 Fire 1225 | 7 60 4 9 . 77 32 93 7 5 6 16 14 42 11 21 1 12 30 3 3 54 18 36 25 68 1 13 . 73 34 . . 45 60 5 18 86 236 Melee 507 | . . 5 . . . 4 108 19 5 8 1 . 6 3 10 . . . . . 1 . . 4 12 . . . 2 22 13 15 30 76 120 19 24 . Ram . | . . . . . . . . . . . . . . . . . . . . . . . . . . . . . . . . . . . . . . . Kick . | . . . . . . . . . . . . . . . . . . . . . . . . . . . . . . . . . . . . . . . Crush 17 | 1 5 . 2 . . . . . . . . . . . . . . . . . 2 . 5 . . . . . . 1 . . . . . . 1 . Escape Stasis 63 | . . . . . 9 . . . . . . . 8 . . . . . . . 40 . . . . . . . . . . . . 2 2 . 2 . Rewire 32 | . . . . . . . . . . 6 . . . 9 . . . . . . 14 . . . . . . . 3 . . . . . . . . . Trap . | . . . . . . . . . . . . . . . . . . . . . . . . . . . . . . . . . . . . . . . Miscellaneous . | . . . . . . . . . . . . . . . . . . . . . . . . . . . . . . . . . . . . . . . Route ------- -11/Scrapyard -10/Materials (discovered 3 exits: *Mat x2 / [*Min]) -9/Materials -9/Mines (discovered 2 exits: *Mat x2) -8/Materials -8/Garrison (discovered 2 exits: *Fac x2) -7/Factory -7/Waste -7/Factory (discovered 3 exits: Sto / *Low x2) -7/Lower Caves -7/Lower Caves -7/Data Miner -6/Proximity Caves -6/Factory (discovered 2 exits: *Low x2) -6/Lower Caves -6/Lower Caves -6/Zion -5/Proximity Caves -5/Factory -5/Waste -5/Factory -5/Extension (discovered 2 exits: *Fac / *Cet) -5/Cetus -5/Archives (discovered 3 exits: *Fac / *Hub x2) -5/Hub_04(d) -4/Factory (discovered 2 exits: *Upp x2) -4/Upper Caves -4/Upper Caves -4/Zhirov -3/Proximity Caves -3/Research (discovered 3 exits: Res / *Arm / [Qua]) -3/Armory -3/Lab -2/Research (discovered 2 exits: *Tes x2) -2/Testing (discovered 2 exits: Acc / *Sec) -2/Section 7 -1/Access -1/Command (discovered 2 exits: [*Sur] / [*Ac0]) -1/Access_0 Near Former Tau Ceti IV History --------- Turn | Location | Event 8 | -11/Scrapyard | Discovered new exit (range 16) 137 | -11/Scrapyard | Entered Materials 338 | -10/Materials | Build established: Mutant 1045 | -10/Materials | Discovered new exit (range 3) 1409 | -10/Materials | Discovered new exit (range 15) 1497 | -10/Materials | Discovered new exit (range 10) 1517 | -10/Materials | Entered another Materials area 1517 | -9/Materials | Evolved 2 slots: Utility x1, Weapon x1 1613 | -9/Materials | Identified exit to Mines 1821 | -9/Materials | Build established: Tank 2102 | -9/Materials | Entered Mines 2242 | -9/Mines | Discovered new exit (range 10) 2310 | -9/Mines | Build established: Hauler-Tank 2468 | -9/Mines | Learned location of Storage (-7) 2710 | -9/Mines | Received a Rocket Launcher from a helpful Derelict 2740 | -9/Mines | Discovered new exit (range 8) 2760 | -9/Mines | Entered Materials 2760 | -8/Materials | Evolved 2 slots: Utility x2 2848 | -8/Materials | Identified exit to Garrison 2848 | -8/Materials | Entered Garrison 2964 | -8/Garrison | Triggered checkpoint 2986 | -8/Garrison | Triggered checkpoint 2998 | -8/Garrison | Triggered checkpoint 3169 | -8/Garrison | Discovered new exit (range 10) 3368 | -8/Garrison | Discovered new exit (range 12) 3416 | -8/Garrison | Installed Relay Interface Framework 3488 | -8/Garrison | Triggered checkpoint 3702 | -8/Garrison | Garrison Relay disabled 3762 | -8/Garrison | Entered Factory 3762 | -7/Factory | Evolved 2 slots: Utility x2 4054 | -7/Factory | Discovered new exit (range 14) 4099 | -7/Factory | Identified exit to Factory 4352 | -7/Factory | Fabricated Recalibrator (x2) 4516 | -7/Factory | Sucked down chute 4516 | -7/Factory | Entered Waste 4531 | -7/Waste | EMP discharged 4564 | -7/Waste | Spotted C-40 Crusher 4565 | -7/Waste | Spotted C-40 Crusher 4572 | -7/Waste | Destroyed C-40 Crusher 4624 | -7/Waste | Spotted C-40 Crusher 4630 | -7/Waste | Spotted C-40 Crusher 4631 | -7/Waste | EMP discharged 4636 | -7/Waste | Spotted C-40 Crusher 4682 | -7/Waste | Destroyed C-40 Crusher 4684 | -7/Waste | Spotted C-40 Crusher 4731 | -7/Waste | EMP discharged 4731 | -7/Waste | System corruption reached 10% 4831 | -7/Waste | EMP discharged 4876 | -7/Waste | Build established: Hauler-Mutant 4931 | -7/Waste | EMP discharged 4963 | -7/Waste | Destroyed C-40 Crusher 4970 | -7/Waste | Found Damper Plating 5031 | -7/Waste | EMP discharged 5031 | -7/Waste | System corruption reached 30% 5037 | -7/Waste | Destroyed C-40 Crusher 5045 | -7/Waste | Found Damper Plating 5131 | -7/Waste | EMP discharged 5231 | -7/Waste | EMP discharged 5331 | -7/Waste | EMP discharged 5431 | -7/Waste | EMP discharged 5531 | -7/Waste | EMP discharged 5581 | -7/Waste | Discovered new exit (range 15) 5631 | -7/Waste | EMP discharged 5731 | -7/Waste | EMP discharged 5831 | -7/Waste | EMP discharged 5931 | -7/Waste | EMP discharged 6031 | -7/Waste | EMP discharged 6131 | -7/Waste | EMP discharged 6231 | -7/Waste | EMP discharged 6331 | -7/Waste | EMP discharged 6431 | -7/Waste | EMP discharged 6531 | -7/Waste | EMP discharged 6631 | -7/Waste | EMP discharged 6731 | -7/Waste | EMP discharged 6831 | -7/Waste | EMP discharged 6931 | -7/Waste | EMP discharged 7031 | -7/Waste | EMP discharged 7131 | -7/Waste | EMP discharged 7231 | -7/Waste | EMP discharged 7331 | -7/Waste | EMP discharged 7431 | -7/Waste | EMP discharged 7531 | -7/Waste | EMP discharged 7631 | -7/Waste | EMP discharged 7731 | -7/Waste | EMP discharged 7831 | -7/Waste | EMP discharged 7931 | -7/Waste | EMP discharged 8031 | -7/Waste | EMP discharged 8131 | -7/Waste | EMP discharged 8231 | -7/Waste | EMP discharged 8331 | -7/Waste | EMP discharged 8431 | -7/Waste | EMP discharged 8531 | -7/Waste | EMP discharged 8631 | -7/Waste | EMP discharged 8731 | -7/Waste | EMP discharged 8831 | -7/Waste | EMP discharged 8931 | -7/Waste | EMP discharged 9031 | -7/Waste | EMP discharged 9131 | -7/Waste | EMP discharged 9231 | -7/Waste | EMP discharged 9331 | -7/Waste | EMP discharged 9431 | -7/Waste | EMP discharged 9531 | -7/Waste | EMP discharged 9631 | -7/Waste | EMP discharged 9731 | -7/Waste | EMP discharged 9831 | -7/Waste | EMP discharged 9931 | -7/Waste | EMP discharged 10031 | -7/Waste | EMP discharged 10131 | -7/Waste | EMP discharged 10231 | -7/Waste | EMP discharged 10331 | -7/Waste | EMP discharged 10431 | -7/Waste | EMP discharged 10531 | -7/Waste | EMP discharged 10631 | -7/Waste | EMP discharged 10731 | -7/Waste | EMP discharged 10831 | -7/Waste | EMP discharged 10931 | -7/Waste | EMP discharged 11031 | -7/Waste | EMP discharged 11131 | -7/Waste | EMP discharged 11231 | -7/Waste | EMP discharged 11331 | -7/Waste | EMP discharged 11431 | -7/Waste | EMP discharged 11531 | -7/Waste | EMP discharged 11631 | -7/Waste | EMP discharged 11731 | -7/Waste | EMP discharged 11831 | -7/Waste | EMP discharged 11931 | -7/Waste | EMP discharged 12031 | -7/Waste | EMP discharged 12131 | -7/Waste | EMP discharged 12231 | -7/Waste | EMP discharged 12331 | -7/Waste | EMP discharged 12431 | -7/Waste | EMP discharged 12531 | -7/Waste | EMP discharged 12631 | -7/Waste | EMP discharged 12731 | -7/Waste | EMP discharged 12831 | -7/Waste | EMP discharged 12931 | -7/Waste | EMP discharged 13031 | -7/Waste | EMP discharged 13131 | -7/Waste | EMP discharged 13231 | -7/Waste | EMP discharged 13331 | -7/Waste | EMP discharged 13431 | -7/Waste | EMP discharged 13531 | -7/Waste | EMP discharged 13631 | -7/Waste | EMP discharged 13731 | -7/Waste | EMP discharged 13831 | -7/Waste | EMP discharged 13931 | -7/Waste | EMP discharged 13948 | -7/Waste | Destroyed C-40 Crusher 14013 | -7/Waste | Entered Factory 14074 | -7/Factory | Identified exit to Storage 14074 | -7/Factory | Identified exit to Lower Caves 14425 | -7/Factory | Entered Lower Caves 14425 | -7/Lower Caves | Accompanied by 1 ally 14703 | -7/Lower Caves | Discovered new exit (range 14) 15228 | -7/Lower Caves | Entered another Lower Caves area 15228 | -7/Lower Caves | Accompanied by 1 ally 15272 | -7/Lower Caves | Attacked by a delusional Derelict stockpiling Unaware 15734 | -7/Lower Caves | Discovered new exit (range 8) 15752 | -7/Lower Caves | Entered Data Miner 15752 | -7/Data Miner | Accompanied by 3 allies 15752 | -7/Data Miner | Discovered new exit (range 6) 15781 | -7/Data Miner | Met Data Miner 15808 | -7/Data Miner | Learned location of Section 7 (-2) 15808 | -7/Data Miner | Acquired the access code to Warlord's prototype stash 15839 | -7/Data Miner | Received God Mode back door access code from Data Miner 15948 | -7/Data Miner | Destroyed Data Miner 15950 | -7/Data Miner | Found Prototype Hackware 15954 | -7/Data Miner | Found Prototype Hackware 15958 | -7/Data Miner | Data Conduit disabled 16203 | -7/Data Miner | Entered Proximity Caves 16230 | -6/Proximity Caves | Learned Factory interactive machine intel 16304 | -6/Proximity Caves | Learned Factory terminal intel 16352 | -6/Proximity Caves | Spotted B-75 Beast 16577 | -6/Proximity Caves | Entered Factory 16577 | -6/Factory | Evolved 2 slots: Utility x2 16578 | -6/Factory | Loaded intel: 46 interactive machine locations 16579 | -6/Factory | Loaded intel: 20 terminal locations 16744 | -6/Factory | Build established: Hauler-Tank 16747 | -6/Factory | Identified Deep Network Scanner 16969 | -6/Factory | Garrison activated, responded to threat 17235 | -6/Factory | Build established: Hauler-Mutant 17502 | -6/Factory | Garrison activated, responded to threat 17592 | -6/Factory | Identified exit to Lower Caves 17719 | -6/Factory | Build established: Hauler-Tank 17817 | -6/Factory | Entered Lower Caves 17949 | -6/Lower Caves | Attracted the attention of an 0b10 outpost 17997 | -6/Lower Caves | Destroyed 7 combat bots 17999 | -6/Lower Caves | Lost 5 parts (1n2u2w) 18197 | -6/Lower Caves | Learned Factory terminal intel 18306 | -6/Lower Caves | Found Prototype Device 18389 | -6/Lower Caves | Spotted B-75 Beast 18493 | -6/Lower Caves | Discovered new exit (range 10) 18506 | -6/Lower Caves | Entered another Lower Caves area 18645 | -6/Lower Caves | Learned Factory emergency access door positions 18654 | -6/Lower Caves | Learned Factory emergency access door positions 18667 | -6/Lower Caves | Spotted B-75 Beast 19041 | -6/Lower Caves | Build established: Hauler-Mutant 19094 | -6/Lower Caves | Attracted the attention of an 0b10 checkpoint 19238 | -6/Lower Caves | Discovered new exit (range 15) 19263 | -6/Lower Caves | Entered Zion 19409 | -6/Zion | Build established: Hauler-Tank 19433 | -6/Zion | Discovered new exit (range 10) 19550 | -6/Zion | RIF detected upon attempting to enter Zion 19550 | -6/Zion | Attacked by Zionites 19561 | -6/Zion | Entered Proximity Caves 19652 | -5/Proximity Caves | Identified Heart of Steel 19915 | -5/Proximity Caves | Learned Factory security intel 19919 | -5/Proximity Caves | Build established: Scavenger-Tank 20023 | -5/Proximity Caves | Discovered new exit (range 13) 20046 | -5/Proximity Caves | Entered Factory 20046 | -5/Factory | Evolved 2 slots: Utility x2 20047 | -5/Factory | Identified exit to Upper Caves 20050 | -5/Factory | Loaded intel: 22 terminal locations 20071 | -5/Factory | Identified Ghost Barrier 20250 | -5/Factory | Fabricated O-16 Technician? 20470 | -5/Factory | Sucked down chute 20470 | -5/Factory | Entered Waste 20493 | -5/Waste | Warlord forces began an assault 20552 | -5/Waste | Spotted C-40 Crusher 20554 | -5/Waste | Allies destroyed C-40 Crusher 20577 | -5/Waste | Found Damper Plating 20587 | -5/Waste | Found Damper Plating 20595 | -5/Waste | Spotted C-40 Crusher 20603 | -5/Waste | Allies destroyed C-40 Crusher 20606 | -5/Waste | Spotted C-40 Crusher 20611 | -5/Waste | Allies destroyed C-40 Crusher 20620 | -5/Waste | Found Damper Plating 20680 | -5/Waste | Build established: Hacker-Tank 20708 | -5/Waste | Spotted C-40 Crusher 20716 | -5/Waste | Spotted C-40 Crusher 20724 | -5/Waste | Allies destroyed C-40 Crusher 20731 | -5/Waste | Allies destroyed C-40 Crusher 21120 | -5/Waste | Discovered new exit (range 14) 21154 | -5/Waste | Entered Factory 21154 | -5/Factory | Accompanied by 6 allies 21495 | -5/Factory | Discovered new exit (range 10) 21509 | -5/Factory | Entered Extension 21618 | -5/Extension | Rescued a captive Derelict 21742 | -5/Extension | Rescued a captive Derelict 21743 | -5/Extension | Rescued a captive Derelict 21778 | -5/Extension | Rescued A7 22096 | -5/Extension | Build established: Hacker-Mutant 22237 | -5/Extension | Spotted B-75 Beast 22244 | -5/Extension | Allies destroyed B-75 Beast 22251 | -5/Extension | Spotted B-75 Beast 22264 | -5/Extension | Destroyed B-75 Beast 22327 | -5/Extension | Extracted ID and sensor layout for unrecognized location from A7's data core 22492 | -5/Extension | Rescued a captive Derelict 22492 | -5/Extension | Rescued a captive Derelict 22614 | -5/Extension | Build established: Hacker-Tank 22698 | -5/Extension | Rescued a captive Derelict 22699 | -5/Extension | Rescued a captive Derelict 22723 | -5/Extension | Rescued a captive Derelict 22723 | -5/Extension | Rescued a captive Derelict 22786 | -5/Extension | Rescued a captive Derelict 22787 | -5/Extension | Rescued a captive Derelict 22857 | -5/Extension | Discovered new exit (range 10) 22859 | -5/Extension | Discovered new exit (range 6) 22874 | -5/Extension | Disrupted transfer network 22919 | -5/Extension | Entered Cetus 22919 | -5/Cetus | Accompanied by 7 allies 22950 | -5/Cetus | Spotted Cetus Guard 22950 | -5/Cetus | Spotted Cetus Guard 22953 | -5/Cetus | Spotted Cetus Guard 22961 | -5/Cetus | Spotted Cetus Guard 22977 | -5/Cetus | Destroyed Cetus Guard 22979 | -5/Cetus | Destroyed Cetus Guard 22981 | -5/Cetus | Destroyed Cetus Guard 22987 | -5/Cetus | Destroyed Cetus Guard 23106 | -5/Cetus | Cetus Manufacturing Module disabled 23151 | -5/Cetus | Discovered new exit (range 16) 23181 | -5/Cetus | Entered Archives 23314 | -5/Archives | Discovered new exit (range 13) 23502 | -5/Archives | Discovered new exit (range 13) 23724 | -5/Archives | Discovered new exit (range 15) 23754 | -5/Archives | Entered Hub_04(d) 23848 | -5/Hub_04(d) | Spotted B-75 Beast 24051 | -5/Hub_04(d) | Discovered new exit (range 13) 24170 | -5/Hub_04(d) | Network Hub disabled 24174 | -5/Hub_04(d) | Entered Factory 24174 | -4/Factory | Evolved 2 slots: Utility x2 24407 | -4/Factory | Identified exit to Upper Caves 24449 | -4/Factory | Build established: Hacker-Mutant 24532 | -4/Factory | Fabricated H-77 Assassin (x2) 24707 | -4/Factory | P-70 Sage assimilated allied Assassin 7b 24729 | -4/Factory | P-70 Sage assimilated allied Assassin 7a 24785 | -4/Factory | Garrison activated, responded to threat 25424 | -4/Factory | First assault squad dispatched 25431 | -4/Factory | Entered Upper Caves 25447 | -4/Upper Caves | Encountered a Warlord checkpoint 25540 | -4/Upper Caves | Learned 4 Research zone layouts 25701 | -4/Upper Caves | Discovered new exit (range 10) 25714 | -4/Upper Caves | Entered another Upper Caves area 25842 | -4/Upper Caves | Found Alien Artifact 26263 | -4/Upper Caves | Discovered new exit (range 14) 26282 | -4/Upper Caves | Entered Zhirov 26282 | -4/Zhirov | Discovered new exit (range 3) 26308 | -4/Zhirov | Met Zhirov 26333 | -4/Zhirov | Learned location of Testing (-2) 26333 | -4/Zhirov | Learned location of Command (-1) 26345 | -4/Zhirov | Zhirov requested help retrieving the SGEMP Prototype 26371 | -4/Zhirov | Found Alien Artifact 26371 | -4/Zhirov | Identified Integrated Reactor 26371 | -4/Zhirov | Installed Integrated Reactor, increased core energy generation (+2%) 26431 | -4/Zhirov | Found Alien Artifact 26486 | -4/Zhirov | Entered Proximity Caves 26589 | -3/Proximity Caves | Attracted the attention of an 0b10 outpost 26696 | -3/Proximity Caves | Lost 4 parts (1u3w) 26930 | -3/Proximity Caves | Lost 3 parts (1n2w) 27005 | -3/Proximity Caves | Lost 3 parts (2u1w) 27288 | -3/Proximity Caves | Discovered new exit (range 13) 27334 | -3/Proximity Caves | Spotted B-86 Titan 27347 | -3/Proximity Caves | Entered Research 27347 | -3/Research | Evolved 2 slots: Propulsion x2 27348 | -3/Research | Identified exit to Armory 27349 | -3/Research | Identified exit to Research 27474 | -3/Research | Identified Dimensional Node Initializer 27474 | -3/Research | Identified Transdimensional Reconstructor 27792 | -3/Research | Discovered new exit (range 12) 27931 | -3/Research | Entered Armory 28064 | -3/Armory | Warped through subspace to slip node 28064 | -3/Armory | Discovered new exit (range 1) 28087 | -3/Armory | Entered Lab 28087 | -3/Lab | Discovered exit to Research (range 9) 28104 | -3/Lab | Hidden lab's door opened automatically 28104 | -3/Lab | Sensor layout match revealed 28105 | -3/Lab | Gained access to the hidden lab's interior 28124 | -3/Lab | Found Alien Artifact 28154 | -3/Lab | Found Alien Artifact 28154 | -3/Lab | Identified Integrated Dissipator 28154 | -3/Lab | Installed Integrated Dissipator, increased core heat dissipation (+2%) 28167 | -3/Lab | Found Transdimensional Reconstructor 28194 | -3/Lab | Found Alien Artifact 28222 | -3/Lab | Found Deep Network Scanner 28227 | -3/Lab | Found Prototype Protection 28227 | -3/Lab | Identified Exp. Powered Armor 28233 | -3/Lab | Found Prototype Energy Cannon 28233 | -3/Lab | Identified Potential Cannon 28238 | -3/Lab | Found Prototype Energy Gun 28238 | -3/Lab | Identified Tachyon Dispersion Ray 28266 | -3/Lab | Found Prototype Special Weapon 28321 | -3/Lab | Entered Research 28321 | -2/Research | Evolved 2 slots: Utility x2 28627 | -2/Research | Identified Gui. Remote Datajack 28649 | -2/Research | Build established: Wizard-Mutant 28867 | -2/Research | Spotted B-90 Cyclops 28955 | -2/Research | Identified exit to Testing 29068 | -2/Research | Entered Testing 29083 | -2/Testing | Protovariant out of control (PG-6ULYMJ09NF) 29111 | -2/Testing | Found Ghost Barrier 29515 | -2/Testing | Found Prototype Device 29540 | -2/Testing | Identified Exp. Hardlight Generator 29761 | -2/Testing | Found Nanosword 29771 | -2/Testing | Found Exp. Target Analyzer 29775 | -2/Testing | Found Exp. Target Analyzer 29816 | -2/Testing | Fabricated Exp. Transmission Jammer (x1) 29952 | -2/Testing | System corruption reached 10% 29963 | -2/Testing | Lost 4 parts (1p2u1w) 30057 | -2/Testing | Found Potential Cannon 30115 | -2/Testing | Identified Core Expander 30115 | -2/Testing | Identified Core Reset Matrix 30167 | -2/Testing | Found Prototype Launcher 30297 | -2/Testing | Found Prototype Launcher 30336 | -2/Testing | Identified Tactical Quantum Warhead 30336 | -2/Testing | Identified Hellfire Missile Launcher 30496 | -2/Testing | Identified exit to Access 30511 | -2/Testing | Found SHELL Armor 30522 | -2/Testing | Central database locked down 30742 | -2/Testing | Spotted Fortress 30861 | -2/Testing | Discovered new exit (range 5) 31064 | -2/Testing | Build established: Hacker-Mutant 31159 | -2/Testing | Entered Section 7 31255 | -2/Section 7 | Found Integrated Reactor 31255 | -2/Section 7 | Installed Integrated Reactor, increased core energy generation (+2%) 31401 | -2/Section 7 | Installed Core Expander, added new Utility slot 31416 | -2/Section 7 | Spotted Executioner 31418 | -2/Section 7 | Spotted Executioner 31460 | -2/Section 7 | Destroyed Executioner 31465 | -2/Section 7 | Destroyed Executioner 31522 | -2/Section 7 | Found Exp. Targeting Computer 31525 | -2/Section 7 | Found Exp. Core Analyzer 31668 | -2/Section 7 | Found Transdimensional Reconstructor 31671 | -2/Section 7 | Found Transdimensional Reconstructor 31679 | -2/Section 7 | Central database locked down 31687 | -2/Section 7 | Found Matter Drive 31706 | -2/Section 7 | Found Terrabomb 31867 | -2/Section 7 | Found Sigix Quantum Sheargun 31872 | -2/Section 7 | Found Sigix Quantum Sheargun 32136 | -2/Section 7 | Found Integrated Reactor 32136 | -2/Section 7 | Installed Integrated Reactor, increased core energy generation (+2%) 32192 | -2/Section 7 | Found LRC Energy Well 32192 | -2/Section 7 | Installed LRC Energy Well, increased energy storage capacity (+250) 32202 | -2/Section 7 | Found LRC Matter Compressor 32202 | -2/Section 7 | Installed LRC Matter Compressor, increased matter storage capacity (+125) 32205 | -2/Section 7 | Found LRC Boosters 32205 | -2/Section 7 | Installed LRC Boosters, increased mass support (+10) 32264 | -2/Section 7 | Found Integrity Redistributor 32264 | -2/Section 7 | Used Integrity Redistributor, redistributed integrity from core (-261) 32268 | -2/Section 7 | Found Integrity Redistributor 32272 | -2/Section 7 | Found Integrity Redistributor 32508 | -2/Section 7 | Crushed by falling debris 32522 | -2/Section 7 | Crushed by falling debris 32617 | -2/Section 7 | Entered Access 32617 | -1/Access | Evolved 2 slots: Power x1, Propulsion x1 32687 | -1/Access | Identified exit to Command 32974 | -1/Access | Central database locked down 32983 | -1/Access | Entered Command 33220 | -1/Command | Spotted Combat Programmer 33245 | -1/Command | Spotted Combat Programmer 33247 | -1/Command | Spotted M Guard 33247 | -1/Command | Spotted M Guard 33256 | -1/Command | Destroyed M Guard 33264 | -1/Command | System corruption reached 10% 33270 | -1/Command | Destroyed M Guard 33286 | -1/Command | Destroyed Combat Programmer 33313 | -1/Command | Destroyed Combat Programmer 33313 | -1/Command | Destroyed all MAIN.C guards 33320 | -1/Command | Used Core Reset Matrix 33340 | -1/Command | Lost 4 parts (1n2u1w) 33368 | -1/Command | Found Exp. Targeting Computer 33371 | -1/Command | Found Prototype Launcher 33403 | -1/Command | Found Prototype Device 33404 | -1/Command | Identified AEGIS Remote Shield 33408 | -1/Command | Found Prototype Reactor 33408 | -1/Command | Identified Zero-point Reactor 33418 | -1/Command | Found Zero-point Reactor 33422 | -1/Command | Found Zero-point Reactor 33425 | -1/Command | Found Zero-point Reactor 33526 | -1/Command | Met MAIN.C 33530 | -1/Command | 0b10 Conduit disabled 33553 | -1/Command | Heart of Steel transformed into Warbot 33554 | -1/Command | Destroyed MAIN.C Shell 33556 | -1/Command | MAIN.C activated Command garrisons 33610 | -1/Command | Destroyed MAIN.C 33631 | -1/Command | Destroyed 7 combat bots 34191 | -1/Command | Build established: Alien-Gunner 34196 | -1/Command | Discovered new exit (range 39) 34214 | -1/Command | Found Unknown Device 34214 | -1/Command | Identified Launcher Loader 34332 | -1/Command | Found Unknown Device 34332 | -1/Command | Identified Quantum Capacitor 34644 | -1/Command | Identified Adv. Micro-nuke Launcher 34921 | -1/Command | Used Integrity Redistributor, redistributed integrity from core (-85) 35000 | -1/Command | Warped through subspace to slip node 35000 | -1/Command | Discovered new exit (range 4) 35018 | -1/Command | Entered Access_0 35019 | -1/Access_0 | Sensed 2 artifacts in vicinity 35020 | -1/Access_0 | Met Architect 35021 | -1/Access_0 | Architect warped through subspace 35033 | -1/Access_0 | Destroyed A8 35139 | -1/Access_0 | Architect warped through subspace 35223 | -1/Access_0 | Architect warped through subspace 35247 | -1/Access_0 | Architect warped through subspace 35267 | -1/Access_0 | Architect warped through subspace 35301 | -1/Access_0 | Build established: Alien-Mutant 35317 | -1/Access_0 | Subspace Access Node disabled 35346 | -1/Access_0 | Architect warped through subspace 35365 | -1/Access_0 | Used Integrity Redistributor, redistributed integrity from core (-118) 35386 | -1/Access_0 | Architect warped through subspace 35469 | -1/Access_0 | Architect warped through subspace 35555 | -1/Access_0 | Architect warped through subspace 35571 | -1/Access_0 | A6 warped into view 35575 | -1/Access_0 | Destroyed A6 35592 | -1/Access_0 | Subspace Access Node disabled 35630 | -1/Access_0 | Architect warped through subspace 35632 | -1/Access_0 | Subspace Access Node disabled 35636 | -1/Access_0 | Found Prototype Processor 35636 | -1/Access_0 | Identified Exp. Melee Analysis Suite 35707 | -1/Access_0 | Architect warped through subspace 35780 | -1/Access_0 | Architect warped through subspace 35842 | -1/Access_0 | Architect warped through subspace 35897 | -1/Access_0 | Architect warped through subspace 35949 | -1/Access_0 | Architect warped through subspace 35989 | -1/Access_0 | A5 warped into view 35994 | -1/Access_0 | Architect warped through subspace 36000 | -1/Access_0 | Destroyed A5 36040 | -1/Access_0 | Architect warped through subspace 36081 | -1/Access_0 | Architect warped through subspace 36127 | -1/Access_0 | Architect warped through subspace 36156 | -1/Access_0 | Architect warped through subspace 36184 | -1/Access_0 | Architect warped through subspace 36209 | -1/Access_0 | Architect warped through subspace 36229 | -1/Access_0 | Architect warped through subspace 36246 | -1/Access_0 | Architect warped through subspace 36262 | -1/Access_0 | Architect warped through subspace 36275 | -1/Access_0 | Architect warped through subspace 36287 | -1/Access_0 | Architect warped through subspace 36302 | -1/Access_0 | Architect warped through subspace 36310 | -1/Access_0 | Architect warped through subspace 36317 | -1/Access_0 | Architect warped through subspace 36322 | -1/Access_0 | Architect warped through subspace 36325 | -1/Access_0 | Subspace Access Node disabled 36329 | -1/Access_0 | Core integrity fell below 50% 36411 | -1/Access_0 | Emitted hypermatrix ping 36416 | -1/Access_0 | Assembled emerged from beneath the floor 36416 | -1/Access_0 | Warped through subspace to slip node 36416 | -1/Access_0 | Discovered new exit (range 8) 36417 | -1/Access_0 | Architect triggered a singularity event 36427 | *** | Escaped singularity! Last Messages --------------- 36411_ Quantum Shear penetrates Architect. 36413_ Penetrated by Quantum Shear. 36413_ Quantum Shear penetrates Architect. 36413_ Prototype Hover Unit severed. 36414_ Quantum Shear penetrates Architect. 36415_ Penetrated by Quantum Shear. 36416_ Assembled emerge from beneath the floor. 36416_ Warped through subspace, drawn to slip node. 36416_ EXIT=FOUND 36417_ A0_COM: Initiating irreversible singularity event. Goodbye. 36418_ A0_COM: 10. 36419_ A0_COM: 9. 36420_ A0_COM: 8. 36421_ A0_COM: 7. 36422_ A0_COM: 6. 36423_ A0_COM: 5. 36424_ A0_COM: 4. 36425_ A0_COM: 3. 36426_ A0_COM: 2. 36427_ A0_COM: 1. Map ----- +----------------------------------------------------+ | | | | | | | | | | | | | | | | | | | | | | | | | | | | | | | | | ?????????????????????????????????????????????????? | | ?????????????????????????????????????????????????? | | ?????????????????????????????????????????????????? | | ?????????????????????????????????????????????????? | | ?????????????????????????????????????????????????? | | ?????????????????????????????????????????????????? | | ????????????????????????###??????????????????????? | | ???????????????????????## ##?????????????????????? | | ???????????????????????# #?????????????????????? | | ???????????????????????# @ #?????????????????????? | | ??????????????????????## #?????????????????????? | | ??????????????????????# #?????????????????????? | | ??????????????????????# ##?????????????????????? | | ??????????????????????## #?????????????????????? | | ??????????????????????# #?????????????????????? | | ??????????????????????# ##?????????????????????? | | ??????????????????????# < #?????????????????????? | | ??????????????????????# ##?????????????????????? | | ??????????????????????## #??????????????????????? | | ???????????????????????####??????????????????????? | | ?????????????????????????????????????????????????? | | ?????????????????????????????????????????????????? | | ?????????????????????????????????????????????????? | | ?????????????????????????????????????????????????? | | ?????????????????????????????????????????????????? | | ?????????????????????????????????????????????????? | | ?????????????????????????????????????????????????? | | ?????????????????????????????????????????????????? | | ?????????????????????????????????????????????????? | | ?????????????????????????????????????????????????? | | ?????????????????????????????????????????????????? | | ?????????????????????????????????????????????????? | | ?????????????????????????????????????????????????? | | ?????????????????????????????????????????????????? | +----------------------------------------------------+ Best States ------------- Heat Dissipation 110 Coolant Potential 240 Energy Generation 91 Energy Capacity 3740 Matter Stores 425 Matter Capacity 925 Sight Range 22 Terrain Scan Range 16 Terrain Scan Density 60 Jamming Range 22 Cloak Strength 2 Additional Mass Support 16 Armor Coverage 2850 Resistance: KI 20 Resistance: TH 20 Resistance: EM 90 Power Shielding 90 Propulsion Shielding 66 Weapon Shielding 66 Point Defense Rating 80 Weapon Cycling 25 Evasion (%) 44 Targeting Accuracy 24 Launcher Accuracy 30 Target Analysis 12 Core Analysis 15 Armor Integrity Analysis 66 Recoil Reduction 5 Matter Filtering 30 Particle Charging 20 Offensive Hacking 64 Defensive Hacking 32 Item Schematics ----------------- None Robot Schematics ------------------ None Fabricated ------------ Recalibrator | x2 | -7/Factory | Preloaded O-16 Technician | x1 | -5/Factory H-77 Assassin | x2 | -4/Factory | Preloaded Exp. Transmission Jammer | x1 | -2/Testing Alien Tech Used ----------------- Integrated Reactor Transdimensional Reconstructor Integrated Dissipator Core Expander LRC Energy Well LRC Matter Compressor LRC Boosters Integrity Redistributor Core Reset Matrix Sigix Quantum Sheargun Achievements -------------- None Challenges ------------ None Game ------ Seed HardenedOverloadScreen Manual? 0 Play Time 05:03:24 Cumulative 1527.1 hours Start 2020.08.27 @ 22:44:17 End 2020.08.28 @ 05:01:19 Sessions 5 Manual Loads 0 Difficulty Rogue Special Mode None Game No. 2437 Rogue 2430 Adventurer 0 Explorer 7 Win Type 6 Total 128 Types 39/10/55/3/3/3/15 Lore% 99 Gallery% 99 Achievement% 100 Wizard Run 0 Options --------- ASCII 0 Keyboard 1 Movement Numpad Keybinds 1 Fullscreen 1 Font 18/SmallcapsGlow Map View 76x50 Tactical HUD 1 Map Filters NONE Filters NONE Steam 1 RUN: ce130c22-b642-4e79-8691-dc41fb910173